Workbook

Sheet リスト (hidden)
B2: リスト
B4: 公共工事等又は物品役務等の区分 | C4: 契約の相手方の区分 | D4: 一般競争入札・指名競争入札の別 | E4: 総合評価落札方式実施の別 | F4: 随意契約の区分 | G4: 随意契約の見直し | H4: 見直し実施年度 | I4: 一括調達形態
A5: 1 | B5: 公共工事等 | C5: 所管公益法人 | D5: 一般競争入札 | E5: 総合評価実施 | F5: 企画競争 | G5: 引き続き競争入札，企画競争又は公募を実施 | H5: 平成24年度 | I5: 近隣官署一括
A6: 2 | B6: 物品役務等 | C6: その他の公益法人 | D6: 指名競争入札 | E6: 価格競争 | F6: 公募 | G6: 事務・事業の中止 | H6: 平成25年度 | I6: 合同庁舎一括
A7: 3 | C7: 独立行政法人等 | F7: 不落・不調による随意契約 | G7: 競争入札に移行 | H7: 平成26年度以降 | I7: 管区一括
A8: 4 | C8: 特殊法人等 | F8: 契約の性質又は目的が競争を許さない場合 | G8: 企画競争に移行
A9: 5 | C9: 特定民間法人等 | F9: 緊急の必要により競争に付することができない場合 | G9: 公募に移行
A10: 6 | C10: その他の法人等 | F10: 競争に付することが不利と認められる場合 | G10: 随意契約によらざるを得ないもの
A11: 7 | F11: 特例政令に該当する場合
A12: 8 | F12: 秘密随意契約
A13: 9 | F13: 随意契約（その他）
A14: 10

Sheet 別表３
A1: 公共調達の適正化について（平成18年8月25日付財計第2017号）に基づく競争入札に係る情報の公表（物品役務等）
K2: 令和6年7月分
A3: No. | B3: 物品役務等の名称及び数量 | C3: 契約担当官等の氏名並びにその所属する部局の名称及び所在地 | D3: 契約を締結した日 | E3: 契約の相手方の商号又は名称及び住所 | F3: 法人番号 | G3: 一般競争入札・指名競争入札の別 (総合評価の実施) | H3: 予定価格 （円） （税込） | I3: 契約金額 （円） （税込） | J3: 落札率 (％) | K3: 備 考
A4: 1 | B4: 令和6年度喜連川少年院建築物の敷地及び構造並びに建築設備の点検業務委託契約 | C4: 支出負担行為担当官 喜連川少年院長 畠山 智行 （栃木県さくら市喜連川3475-1） | D4: 2024-07-01 | E4: 建築サーブ株式会社 神奈川県横浜市泉町和泉町7315-1 2-407 | F4: 2020001052210 | G4: 一般競争入札 | H4: 2745600 | I4: 302500 | J4: =IFERROR(ROUNDDOWN(I4/H4,3),"-") -> 0.11
A5: 2 | B5: 西宮地方合同庁舎ほか14庁建築物及び建築設備定期点検業務 | C5: 支出負担行為担当官 神戸地方法務局長 三木 秀樹 （兵庫県神戸市中央区波止場町1-1） | D5: 2024-07-01 | E5: 株式会社国原技術 京都府京都市山科区勧修寺縄手町45 | F5: 4130001014313 | G5: 一般競争入札 | H5: 1055397 | I5: 669947 | J5: =IFERROR(ROUNDDOWN(I5/H5,3),"-") -> 0.634 | K5: 共同調達（第五管区海上保安本部、兵庫労働局、神戸地方検察庁、近畿地方更生保護委員会、自衛隊兵庫地方協力本部） 予定価格総額 1,270,201円 契約金額総額 806,300円
A6: 3 | B6: 奈良第二地方合同庁舎非常用自家発電設備燃料噴射ポンプ交換作業 | C6: 支出負担行為担当官 奈良地方法務局長 佐藤 淳一 （奈良県奈良市高畑町552） | D6: 2024-07-01 | E6: 株式会社IEM 神奈川県川崎市川崎区宮本町6-1 | F6: 2120001037952 | G6: 一般競争入札 | H6: 969623 | I6: 685177 | J6: =IFERROR(ROUNDDOWN(I6/H6,3),"-") -> 0.706 | K6: 共同調達（奈良労働局、自衛隊奈良地方協力本部） 予定価格総額 1,525,524円 契約金額総額 1,078,000円
A7: 4 | B7: 徳島法務総合庁舎等自動体外式除細動器賃貸借（4台） | C7: 支出負担行為担当官代理 徳島地方検察庁次席検事 田村 志保 （徳島県徳島市徳島町2-17） | D7: 2024-07-01 | E7: 株式会社エム･イー･サイエンス 大阪府大阪市淀川区東三国4-14-24 | F7: 3120001054195 | G7: 一般競争入札 | H7: 1108800 | I7: 773520 | J7: =IFERROR(ROUNDDOWN(I7/H7,3),"-") -> 0.697
A8: 5 | B8: 令和5年度法務省省庁別財務書類等作成支援等業務の請負 一式 | C8: 支出負担行為担当官 法務省大臣官房会計課長 村松 秀樹 （東京都千代田区霞が関1-1-1） | D8: 2024-07-01 | E8: 伊田公認会計士･税理士事務所 東京都世田谷区世田谷3-23-16 | F8: - | G8: 一般競争入札 | H8: 1726154 | I8: 1320000 | J8: =IFERROR(ROUNDDOWN(I8/H8,3),"-") -> 0.764
A9: 6 | B9: 令和6年度事務用品単価契約（115品目） | C9: 支出負担行為担当官 北海少年院長 眞部 岳英 （北海道千歳市大和4-746-10） | D9: 2024-07-01 | E9: 株式会社イシダ 北海道札幌市豊平区平岸4-3-1-24 | F9: 3430001001372 | G9: 一般競争入札 | H9: 2285123 | I9: 1501135 | J9: =IFERROR(ROUNDDOWN(I9/H9,3),"-") -> 0.656 | K9: 単価契約
A10: 7 | B10: 令和6年度第2四半期岡崎医療刑務所A重油供給契約 | C10: 支出負担行為担当官 岡崎医療刑務所長 安部 明弘 （愛知県岡崎市上地4-24-16） | D10: 2024-07-01 | E10: シューワ株式会社 大阪府堺市中区陶器北244-5 | F10: 1120101003418 | G10: 一般競争入札 | H10: 1672000 | I10: 1536480 | J10: =IFERROR(ROUNDDOWN(I10/H10,3),"-") -> 0.918 | K10: 単価契約
A11: 8 | B11: 令和6年度広島刑務所ボイラー及び第一種圧力容器点検整備業務 | C11: 支出負担行為担当官 広島刑務所長 宮本 良一 （広島県広島市中区吉島町13-114） | D11: 2024-07-01 | E11: 呉共同機工株式会社広島営業所 広島県広島市東区戸坂数甲1-1-48 | F11: 4290801016328 | G11: 一般競争入札 | H11: 2429790 | I11: 1562000 | J11: =IFERROR(ROUNDDOWN(I11/H11,3),"-") -> 0.642
A12: 9 | B12: 令和6年度第2四半期分横浜刑務所被収容者用食料品単価契約（インスタントコーヒー4.384㎏ほか12件） | C12: 支出負担行為担当官 横浜刑務所長 小嶌 一平 （神奈川県横浜市港南区港南4-2-2） | D12: 2024-07-01 | E12: 有限会社鈴井園茶舗 宮城県仙台市太白区西多賀4-13-10 | F12: 2370002011700 | G12: 一般競争入札 | H12: 1948522 | I12: 1667399 | J12: =IFERROR(ROUNDDOWN(I12/H12,3),"-") -> 0.855 | K12: 単価契約
A13: 10 | B13: 令和6年度秋田刑務所等消防用設備等点検業務委託契約 | C13: 支出負担行為担当官 秋田刑務所長 加藤 圭 （秋田県秋田市川尻新川町1-1） | D13: 2024-07-01 | E13: 太平ビルサービス株式会社秋田支店 秋田県秋田市山王6-14-12 | F13: 2011101012138 | G13: 一般競争入札 | H13: 1991000 | I13: 1760000 | J13: =IFERROR(ROUNDDOWN(I13/H13,3),"-") -> 0.883
A14: 11 | B14: 令和6年度第2四半期分横浜刑務所被収容者用食料品単価契約（コッペパン1929.248㎏） | C14: 支出負担行為担当官 横浜刑務所長 小嶌 一平 （神奈川県横浜市港南区港南4-2-2） | D14: 2024-07-01 | E14: 株式会社かもめパン 神奈川県横浜市南区永田東2-10-15 | F14: 5020001012707 | G14: 一般競争入札 | H14: 2000630 | I14: 1861724 | J14: =IFERROR(ROUNDDOWN(I14/H14,3),"-") -> 0.93 | K14: 単価契約
A15: 12 | B15: 令和6年度第2四半期分横浜刑務所被収容者用食料品単価契約（豆板醬68.413㎏ほか10件） | C15: 支出負担行為担当官 横浜刑務所長 小嶌 一平 （神奈川県横浜市港南区港南4-2-2） | D15: 2024-07-01 | E15: 株式会社栄村商店 神奈川県横浜市保土ヶ谷区坂本町298 | F15: 6020001009669 | G15: 一般競争入札 | H15: 2518067 | I15: 1937658 | J15: =IFERROR(ROUNDDOWN(I15/H15,3),"-") -> 0.769 | K15: 単価契約
A16: 13 | B16: 東京拘置所ガソリン等（ガソリン）単価契約 | C16: 支出負担行為担当官 東京拘置所長 柴﨑 正文 （東京都葛飾区小菅1-35-1） | D16: 2024-07-01 | E16: シューワ株式会社 大阪府堺市中区陶器北244-5 | F16: 1120101003418 | G16: 一般競争入札 | H16: 2042040 | I16: 1998480 | J16: =IFERROR(ROUNDDOWN(I16/H16,3),"-") -> 0.978 | K16: 単価契約
A17: 14 | B17: 令和6年度衛生用品単価契約（56品目） | C17: 支出負担行為担当官 北海少年院長 眞部 岳英 （北海道千歳市大和4-746-10） | D17: 2024-07-01 | E17: 菊屋商事株式会社 北海道札幌市中央区南21-10-2-17 | F17: 3430001004276 | G17: 一般競争入札 | H17: 2876589 | I17: 2052067 | J17: =IFERROR(ROUNDDOWN(I17/H17,3),"-") -> 0.713 | K17: 単価契約
A18: 15 | B18: 宮崎刑務所令和6年度第2四半期A重油供給契約 | C18: 支出負担行為担当官 宮崎刑務所長 福吉 正幸 （宮崎県宮崎市大字糸原4623） | D18: 2024-07-01 | E18: 福井石油株式会社 宮崎県宮崎市祇園1-117 | F18: 1350001001473 | G18: 一般競争入札 | H18: 2545500 | I18: 2334750 | J18: =IFERROR(ROUNDDOWN(I18/H18,3),"-") -> 0.917 | K18: 単価契約
A19: 16 | B19: 令和6年度福岡矯正管区管内矯正施設医薬品共同調達（15品目） | C19: 支出負担行為担当官 大分刑務所長 今村 守 （大分県大分市畑中5-4-1） | D19: 2024-07-01 | E19: 株式会社アトル 大分県大分市下郡3182-2 | F19: 8290001012719 | G19: 一般競争入札 | H19: 2819492 | I19: 2767584 | J19: =IFERROR(ROUNDDOWN(I19/H19,3),"-") -> 0.981 | K19: 単価契約 一括調達（福岡刑務所、北九州医療刑務所、福岡拘置所、佐賀少年刑務所、麓刑務所、長崎刑務所、熊本刑務所、宮崎刑務所、鹿児島刑務所、福岡少年院、筑紫少女苑、大分少年院、中津少年学院、人吉農芸学院）
A20: 17 | B20: 令和6年度福岡矯正管区管内矯正施設医薬品共同調達（10品目） | C20: 支出負担行為担当官 大分刑務所長 今村 守 （大分県大分市畑中5-4-1） | D20: 2024-07-01 | E20: 株式会社ジェネフィット･ジャパン 熊本県熊本市南区出仲間8-5-33 | F20: 3330001006084 | G20: 一般競争入札 | H20: 2776686 | I20: 2776686 | J20: =IFERROR(ROUNDDOWN(I20/H20,3),"-") -> 1 | K20: 単価契約 一括調達（福岡刑務所、北九州医療刑務所、福岡拘置所、佐賀少年刑務所、麓刑務所、長崎刑務所、熊本刑務所、宮崎刑務所、鹿児島刑務所、福岡少年院、筑紫少女苑、大分少年院、中津少年学院、人吉農芸学院）
A21: 18 | B21: 令和6年度神戸刑務所職員一般定期健康診断及び特別定期健康診断業務委託 | C21: 支出負担行為担当官 神戸刑務所長 二階堂 亮治 （兵庫県明石市大久保町森田120） | D21: 2024-07-01 | E21: 株式会社アトラスメディカル 兵庫県姫路市飾磨区清水3-64 | F21: 9140001108423 | G21: 一般競争入札 | H21: 3878550 | I21: 2987000 | J21: =IFERROR(ROUNDDOWN(I21/H21,3),"-") -> 0.77 | K21: 単価契約
A22: 19 | B22: 令和6年度第2四半期分横浜刑務所精麦供給契約（精麦14.240㎏） | C22: 支出負担行為担当官 横浜刑務所長 小嶌 一平 （神奈川県横浜市港南区港南4-2-2） | D22: 2024-07-01 | E22: 株式会社むらせ 神奈川県横須賀市米が浜通1-6 | F22: 4021001041192 | G22: 一般競争入札 | H22: 3303680 | I22: 3018880 | J22: =IFERROR(ROUNDDOWN(I22/H22,3),"-") -> 0.913 | K22: 単価契約
A23: 20 | B23: 第2居室棟居室カメラ等設置契約 | C23: 支出負担行為担当官 大阪刑務所長 谷口 晃康 （大阪府堺市堺区田出井町6-1） | D23: 2024-07-01 | E23: 三和コンピュータ株式会社 東京都港区南麻布3-20-1 | F23: 8010401011967 | G23: 一般競争入札 | H23: 3201220 | I23: 3080000 | J23: =IFERROR(ROUNDDOWN(I23/H23,3),"-") -> 0.962
A24: 21 | B24: 東京拘置所ガソリン等（A重油）単価契約 | C24: 支出負担行為担当官 東京拘置所長 柴﨑 正文 （東京都葛飾区小菅1-35-1） | D24: 2024-07-01 | E24: シューワ株式会社 大阪府堺市中区陶器北244-5 | F24: 1120101003418 | G24: 一般競争入札 | H24: 3190000 | I24: 3091110 | J24: =IFERROR(ROUNDDOWN(I24/H24,3),"-") -> 0.969 | K24: 単価契約
A25: 22 | B25: 令和6年度福岡矯正管区管内矯正施設医薬品共同調達（28品目） | C25: 支出負担行為担当官 大分刑務所長 今村 守 （大分県大分市畑中5-4-1） | D25: 2024-07-01 | E25: 合名会社徳光屋本店 熊本県熊本市中央区新町2-10-20 | F25: 5330003001131 | G25: 一般競争入札 | H25: 3695593 | I25: 3445522 | J25: =IFERROR(ROUNDDOWN(I25/H25,3),"-") -> 0.932 | K25: 単価契約 一括調達（福岡刑務所、北九州医療刑務所、福岡拘置所、佐賀少年刑務所、麓刑務所、長崎刑務所、熊本刑務所、宮崎刑務所、鹿児島刑務所、福岡少年院、筑紫少女苑、大分少年院、中津少年学院、人吉農芸学院）
A26: 23 | B26: 東京拘置所ガソリン等（軽油）単価契約 | C26: 支出負担行為担当官 東京拘置所長 柴﨑 正文 （東京都葛飾区小菅1-35-1） | D26: 2024-07-01 | E26: 日東鉱油有限会社 東京都葛飾区小菅3-11-12 | F26: 2011802006017 | G26: 一般競争入札 | H26: 3694600 | I26: 3451500 | J26: =IFERROR(ROUNDDOWN(I26/H26,3),"-") -> 0.934 | K26: 単価契約
A27: 24 | B27: 長期相続登記等未了土地解消作業（登記名義人110名分）の委託一式 | C27: 支出負担行為担当官 那覇地方法務局長 山内 恵 （沖縄県那覇市樋川1-15-15） | D27: 2024-07-01 | E27: 司法書士法人tomoni 宮城県仙台市青葉区立町23-19-201 | F27: 6370005003063 | G27: 一般競争入札 | H27: 3974632 | I27: 3520000 | J27: =IFERROR(ROUNDDOWN(I27/H27,3),"-") -> 0.885
A28: 25 | B28: 令和6年度背幅可変式ファイル購入契約（9364冊） | C28: 支出負担行為担当官 甲府地方法務局長 横井 秀行 （山梨県甲府市丸の内1-1-18） | D28: 2024-07-01 | E28: 有限会社三章堂 東京都千代田区神田神保町1-103 | F28: 2010002010093 | G28: 一般競争入札 | H28: 4140304 | I28: 3589679 | J28: =IFERROR(ROUNDDOWN(I28/H28,3),"-") -> 0.867 | K28: 一括調達（東京法務局、水戸地方法務局）
A29: 26 | B29: 令和6年度第2四半期分横浜刑務所被収容者用食料品単価契約（マッシュルーム缶131.162㎏ほか31件） | C29: 支出負担行為担当官 横浜刑務所長 小嶌 一平 （神奈川県横浜市港南区港南4-2-2） | D29: 2024-07-01 | E29: 東京カセー株式会社 神奈川県横須賀市根岸町1-2-22 | F29: 7021001040786 | G29: 一般競争入札 | H29: 5683398 | I29: 3688904 | J29: =IFERROR(ROUNDDOWN(I29/H29,3),"-") -> 0.649 | K29: 単価契約
A30: 27 | B30: 令和6年度第2四半期分横浜刑務所被収容者用食料品単価契約（じゃがいも冷凍2302.438㎏ほか16件） | C30: 支出負担行為担当官 横浜刑務所長 小嶌 一平 （神奈川県横浜市港南区港南4-2-2） | D30: 2024-07-01 | E30: 畠山物産株式会社 神奈川県横浜市神奈川区栄町89-22 | F30: 1020001024160 | G30: 一般競争入札 | H30: 6192162 | I30: 3767362 | J30: =IFERROR(ROUNDDOWN(I30/H30,3),"-") -> 0.608 | K30: 単価契約
A31: 28 | B31: 令和6年度さいたま地方検察庁、さいたま保護観察所及びさいたま公安調査事務所健康診断委託契約 | C31: 支出負担行為担当官 さいたま地方検察庁検事正 野下 智之 （埼玉県さいたま市浦和区高砂3-16-58） | D31: 2024-07-01 | E31: 一般社団法人衛生文化協会 東京都杉並区上荻2-41-15 | F31: 2011305000046 | G31: 一般競争入札 | H31: 4178871 | I31: 3907970 | J31: =IFERROR(ROUNDDOWN(I31/H31,3),"-") -> 0.935 | K31: 単価契約 一括調達（関東地方更生保護委員会、関東公安調査局）
A32: 29 | B32: 令和6年度宮崎地方検察庁庁用自動車交換契約（1台） | C32: 支出負担行為担当官 宮崎地方検察庁検事正 自見 武士 （宮崎県宮崎市別府町1-1） | D32: 2024-07-01 | E32: 宮崎日産自動車株式会社 宮崎県宮崎市花ケ島町屋形町1179 | F32: 6350001002871 | G32: 一般競争入札（総合評価落札方式） | H32: 4188197 | I32: 3963755 | J32: =IFERROR(ROUNDDOWN(I32/H32,3),"-") -> 0.946
A33: 30 | B33: 令和6年度福岡拘置所第2四半期A重供給契約 | C33: 支出負担行為担当官 福岡拘置所長 古川 英樹 （福岡県福岡市早良区百道2-16-10） | D33: 2024-07-01 | E33: 林兼石油株式会社 福岡県福岡市中央区渡辺通4-10-10 | F33: 1290001009738 | G33: 一般競争入札 | H33: 4554440 | I33: 4186600 | J33: =IFERROR(ROUNDDOWN(I33/H33,3),"-") -> 0.919 | K33: 単価契約
A34: 31 | B34: 令和6年度第2四半期分横浜刑務所被収容者用食料品単価契約（ピーナッツ味噌83.465㎏ほか44件） | C34: 支出負担行為担当官 横浜刑務所長 小嶌 一平 （神奈川県横浜市港南区港南4-2-2） | D34: 2024-07-01 | E34: 株式会社鈴木屋 神奈川県横浜市中区上野町2-50 | F34: 3020001027153 | G34: 一般競争入札 | H34: 6596560 | I34: 4549404 | J34: =IFERROR(ROUNDDOWN(I34/H34,3),"-") -> 0.689 | K34: 単価契約
A35: 32 | B35: 令和6年度第2四半期白灯油供給契約（48,000ℓ） | C35: 支出負担行為担当官 長崎刑務所長 村上 正剛 （長崎県諫早市小川町1650） | D35: 2024-07-01 | E35: アポロ興産株式会社 長崎県島原市蛭子町1-7460 | F35: 3310001001871 | G35: 一般競争入札 | H35: 5174400 | I35: 4577760 | J35: =IFERROR(ROUNDDOWN(I35/H35,3),"-") -> 0.884 | K35: 単価契約
A36: 33 | B36: 令和6年度秋田刑務所第2四半期A重油供給契約（44,000ℓ） | C36: 支出負担行為担当官 秋田刑務所長 加藤 圭 （秋田県秋田市川尻新川町1-1） | D36: 2024-07-01 | E36: 港北石油株式会社 秋田県秋田市飯島道東1-7-50 | F36: 4410001001084 | G36: 一般競争入札 | H36: 4689960 | I36: 4588320 | J36: =IFERROR(ROUNDDOWN(I36/H36,3),"-") -> 0.978 | K36: 単価契約
A37: 34 | B37: 冷暖房用燃料継続的供給 | C37: 支出負担行為担当官 長野地方法務局長 谷田部 浩 （長野県長野市大字長野旭町1108） | D37: 2024-07-01 | E37: 株式会社高見澤 長野県長野市大字鶴賀字苗間平1605-14 | F37: 9100001001879 | G37: 一般競争入札 | H37: 4667944 | I37: 4603691 | J37: =IFERROR(ROUNDDOWN(I37/H37,3),"-") -> 0.986 | K37: 単価契約
A38: 35 | B38: 令和6年度第2四半期におけるA重油売買契約 | C38: 支出負担行為担当官 熊本刑務所長 大坪 誠 （熊本県熊本市中央区渡鹿7-12-1） | D38: 2024-07-01 | E38: 株式会社平川燃料 福岡県大牟田市大字草木998-1 | F38: 1290001054387 | G38: 一般競争入札 | H38: 5351940 | I38: 5060880 | J38: =IFERROR(ROUNDDOWN(I38/H38,3),"-") -> 0.945 | K38: 単価契約
A39: 36 | B39: 長期相続登記等未了土地解消作業（登記名義人200名分）の委託一式 | C39: 支出負担行為担当官 奈良地方法務局長 佐藤 淳一 （奈良県奈良市高畑町552） | D39: 2024-07-01 | E39: 一般社団法人奈良県公共嘱託登記司法書士協会 奈良県奈良市西木辻󠄀町320-5 | F39: 9150005009006 | G39: 一般競争入札 | H39: 6752640 | I39: 5225000 | J39: =IFERROR(ROUNDDOWN(I39/H39,3),"-") -> 0.773
A40: 37 | B40: 長期相続登記等未了土地解消作業委託契約 | C40: 支出負担行為担当官 大津地方法務局長 松尾 力実 （滋賀県大津市京町3-1-1） | D40: 2024-07-01 | E40: 一般社団法人滋賀県公共嘱託登記司法書士協会 滋賀県大津市末広町7-5 | F40: 7160005000072 | G40: 一般競争入札 | H40: 6841605 | I40: 5280000 | J40: =IFERROR(ROUNDDOWN(I40/H40,3),"-") -> 0.771
A41: 38 | B41: 令和6年度第2四半期水戸刑務所A重油供給契約 | C41: 支出負担行為担当官 水戸刑務所長 原田 博 （茨城県ひたちなか市市毛847） | D41: 2024-07-01 | E41: 鈴与商事株式会社 静岡県静岡市清水区入船町11-1 | F41: 1080001002318 | G41: 一般競争入札 | H41: 5742000 | I41: 5352820 | J41: =IFERROR(ROUNDDOWN(I41/H41,3),"-") -> 0.932 | K41: 単価契約
A42: 39 | B42: 令和6年度函館少年刑務所第2四半期分重油供給契約 | C42: 支出負担行為担当官 函館少年刑務所長 渡邊 真也 （北海道函館市金堀町6-11） | D42: 2024-07-01 | E42: 株式会社池見石油店 北海道函館市豊川町10-1 | F42: 6440001000107 | G42: 一般競争入札 | H42: 5808000 | I42: 5662800 | J42: =IFERROR(ROUNDDOWN(I42/H42,3),"-") -> 0.975 | K42: 単価契約
A43: 40 | B43: 長期相続登記等未了土地解消作業（登記名義人200名分）の委託一式 | C43: 支出負担行為担当官 津地方法務局長 坂 佳恭 （三重県津市丸之内26-8） | D43: 2024-07-01 | E43: 三重県司法書士会長期相続登記等未了土地解消作業受託団 三重県桑名市大字西別所1496-3 | F43: - | G43: 一般競争入札 | H43: 7226604 | I43: 5720000 | J43: =IFERROR(ROUNDDOWN(I43/H43,3),"-") -> 0.791
A44: 41 | B44: 静岡地方検察庁沼津支部における機械警備業務委託契約 | C44: 支出負担行為担当官 静岡地方検察庁検事正 山田 英夫 （静岡県静岡市葵区追手町9-45） | D44: 2024-07-01 | E44: 綜合警備保障株式会社 東京都港区元赤坂1-6-6 | F44: 3010401016070 | G44: 一般競争入札 | H44: 13489548 | I44: 6094822 | J44: =IFERROR(ROUNDDOWN(I44/H44,3),"-") -> 0.451 | K44: 低入札価格調査実施
A45: 42 | B45: 令和6年度福岡矯正管区管内矯正施設医薬品共同調達（58品目） | C45: 支出負担行為担当官 大分刑務所長 今村 守 （大分県大分市畑中5-4-1） | D45: 2024-07-01 | E45: シンコー薬品株式会社 福岡県北九州市八幡東区枝光4-1-1 | F45: 1290801001885 | G45: 一般競争入札 | H45: 8238506 | I45: 6229435 | J45: =IFERROR(ROUNDDOWN(I45/H45,3),"-") -> 0.756 | K45: 単価契約 一括調達（福岡刑務所、北九州医療刑務所、福岡拘置所、佐賀少年刑務所、麓刑務所、長崎刑務所、熊本刑務所、宮崎刑務所、鹿児島刑務所、福岡少年院、筑紫少女苑、大分少年院、中津少年学院、人吉農芸学院）
A46: 43 | B46: 令和6年度名古屋拘置所A重油供給単価契約（第2四半期分）（78,000ℓ） | C46: 支出負担行為担当官 名古屋拘置所長 三角 渉 （愛知県名古屋市東区白壁1-1） | D46: 2024-07-01 | E46: 中川物産株式会社 愛知県名古屋市港区潮見町37-23 | F46: 7180001047999 | G46: 一般競争入札 | H46: 7293000 | I46: 7095660 | J46: =IFERROR(ROUNDDOWN(I46/H46,3),"-") -> 0.972 | K46: 単価契約
A47: 44 | B47: 令和6年度第2四半期ボイラー燃料用灯油物品供給契約 | C47: 支出負担行為担当官 松江刑務所長 出雲路 朗 （島根県松江市西川津町67） | D47: 2024-07-01 | E47: 株式会社ジョモネット山陰 鳥取県米子市昭和町38-1 | F47: 9270001003322 | G47: 一般競争入札 | H47: 7603200 | I47: 7104240 | J47: =IFERROR(ROUNDDOWN(I47/H47,3),"-") -> 0.934 | K47: 単価契約
A48: 45 | B48: 令和6年度旭川刑務所ボイラー運転業務委託契約 | C48: 支出負担行為担当官 旭川刑務所長 窪田 哲也 （北海道旭川市東鷹来栖3-20-620） | D48: 2024-07-01 | E48: 鈴蘭ビルサービス株式会社 北海道河東郡音更町南鈴蘭南2-4 | F48: 6460101003874 | G48: 一般競争入札 | H48: 9026633 | I48: 9020000 | J48: =IFERROR(ROUNDDOWN(I48/H48,3),"-") -> 0.999
A49: 46 | B49: 令和6年度旭川刑務所第2四半期A重油供給契約 | C49: 支出負担行為担当官 旭川刑務所長 窪田 哲也 （北海道旭川市東鷹来栖3-20-620） | D49: 2024-07-01 | E49: カメイ株式会社北海道支店 北海道札幌市豊平区月寒東2条7-9-24 | F49: 5370001003340 | G49: 一般競争入札 | H49: 9648100 | I49: 9281580 | J49: =IFERROR(ROUNDDOWN(I49/H49,3),"-") -> 0.962 | K49: 単価契約
A50: 47 | B50: 令和6年度第2四半期分横浜刑務所被収容者用食料品単価契約（ベーコン347.801㎏ほか3件） | C50: 支出負担行為担当官 横浜刑務所長 小嶌 一平 （神奈川県横浜市港南区港南4-2-2） | D50: 2024-07-01 | E50: 株式会社ファインフーズ 東京都武蔵村山市榎2-82-1 | F50: 9012801003072 | G50: 一般競争入札 | H50: 12877273 | I50: 10316732 | J50: =IFERROR(ROUNDDOWN(I50/H50,3),"-") -> 0.801 | K50: 単価契約
A51: 48 | B51: 宇都宮法務総合庁舎施設警備業務委託 | C51: 支出負担行為担当官 宇都宮地方検察庁検事正 竹中 理比古 （栃木県宇都宮市小幡2-1-11） | D51: 2024-07-01 | E51: 東洋ワークセキュリティ株式会社 宮城県仙台市青葉区国分町1-7-18 | F51: 9370001018599 | G51: 一般競争入札 | H51: 17370702 | I51: 13157100 | J51: =IFERROR(ROUNDDOWN(I51/H51,3),"-") -> 0.757 | K51: 一括調達（宇都宮地方法務局、関東地方更生保護委員会、東京出入国在留管理局）
A52: 49 | B52: 令和6年度第2四半期分A重油供給契約 | C52: 支出負担行為担当官 月形刑務所長 小松 一俊 （北海道樺戸郡月形町1011） | D52: 2024-07-01 | E52: カメイ株式会社北海道支店 北海道札幌市豊平区月寒東2条7-9-24 | F52: 5370001003340 | G52: 一般競争入札 | H52: 16744200 | I52: 14779500 | J52: =IFERROR(ROUNDDOWN(I52/H52,3),"-") -> 0.882 | K52: 単価契約
A53: 50 | B53: 令和6年度福岡矯正管区管内矯正施設医薬品共同調達（70品目） | C53: 支出負担行為担当官 大分刑務所長 今村 守 （大分県大分市畑中5-4-1） | D53: 2024-07-01 | E53: 九州東邦株式会社 福岡県福岡市東区箱崎ふ頭3-4-46 | F53: 7330001003045 | G53: 一般競争入札 | H53: 17731874 | I53: 17665224 | J53: =IFERROR(ROUNDDOWN(I53/H53,3),"-") -> 0.996 | K53: 単価契約 一括調達（福岡刑務所、北九州医療刑務所、福岡拘置所、佐賀少年刑務所、麓刑務所、長崎刑務所、熊本刑務所、宮崎刑務所、鹿児島刑務所、福岡少年院、筑紫少女苑、大分少年院、中津少年学院、人吉農芸学院）
A54: 51 | B54: A重油供給単価契約 | C54: 支出負担行為担当官 喜連川社会復帰促進センター長 小野寺 巧 （栃木県さくら市喜連川5547） | D54: 2024-07-01 | E54: 有限会社猪瀬燃料店 栃木県大田原市紫塚1-13-18 | F54: 7060002025124 | G54: 一般競争入札 | H54: 22572000 | I54: 19863360 | J54: =IFERROR(ROUNDDOWN(I54/H54,3),"-") -> 0.88 | K54: 単価契約
A55: 52 | B55: 令和6年度福岡矯正管区管内矯正施設医薬品共同調達（240品目） | C55: 支出負担行為担当官 大分刑務所長 今村 守 （大分県大分市畑中5-4-1） | D55: 2024-07-01 | E55: 株式会社中央薬品 神奈川県横浜市泉区和泉町1191-4 | F55: 6020001029840 | G55: 一般競争入札 | H55: 26462529 | I55: 23511543 | J55: =IFERROR(ROUNDDOWN(I55/H55,3),"-") -> 0.888 | K55: 単価契約 一括調達（福岡刑務所、北九州医療刑務所、福岡拘置所、佐賀少年刑務所、麓刑務所、長崎刑務所、熊本刑務所、宮崎刑務所、鹿児島刑務所、福岡少年院、筑紫少女苑、大分少年院、中津少年学院、人吉農芸学院）
A56: 53 | B56: 令和6年度福岡矯正管区管内矯正施設医薬品共同調達（82品目） | C56: 支出負担行為担当官 大分刑務所長 今村 守 （大分県大分市畑中5-4-1） | D56: 2024-07-01 | E56: 株式会社翔薬大分支店 大分県大分市新町14-8 | F56: 7290001012769 | G56: 一般競争入札 | H56: 27480542 | I56: 27480542 | J56: =IFERROR(ROUNDDOWN(I56/H56,3),"-") -> 1 | K56: 単価契約 一括調達（福岡刑務所、北九州医療刑務所、福岡拘置所、佐賀少年刑務所、麓刑務所、長崎刑務所、熊本刑務所、宮崎刑務所、鹿児島刑務所、福岡少年院、筑紫少女苑、大分少年院、中津少年学院、人吉農芸学院）
A57: 54 | B57: 令和6年度第2四半期名古屋矯正管内被収容者用うるち玄米供給単価契約 | C57: 支出負担行為担当官 福井刑務所長 森川 久浩 （福井県福井市一本木町52） | D57: 2024-07-01 | E57: 株式会社神明 東京都中央区日本橋小網町16-15 | F57: 9010001191011 | G57: 一般競争入札 | H57: 30457674 | I57: 30349004 | J57: =IFERROR(ROUNDDOWN(I57/H57,3),"-") -> 0.996 | K57: 単価契約 一括調達（富山刑務所、金沢刑務所、岐阜刑務所、名古屋刑務所、岡崎医療刑務所、名古屋拘置所、湖南学院、瀬戸少年院、愛知少年院、宮川医療少年院、豊ケ岡学園）
A58: 55 | B58: 令和6年度第2／四半期分福岡矯正管区管内矯正施設用うるち玄米購入契約 | C58: 支出負担行為担当官 福岡少年院長 三好 清凡 （福岡県福岡市南区老司4-20-1） | D58: 2024-07-01 | E58: 株式会社坂本食糧 熊本県八代市鏡町鏡819 | F58: 5330001013855 | G58: 一般競争入札 | H58: 36560559 | I58: 31176600 | J58: =IFERROR(ROUNDDOWN(I58/H58,3),"-") -> 0.852 | K58: 一括調達（北九州医療刑務所、福岡刑務所、麓刑務所、長崎刑務所、熊本刑務所、大分刑務所、宮崎刑務所、鹿児島刑務所、沖縄刑務所、佐賀少年刑務所、福岡拘置所、小倉拘置支所、筑紫少女苑、人吉農芸学院、中津少年学院、大分少年院）
A59: 56 | B59: 登記所備付地図作成作業（令和6年度及び令和7年度） 一式 | C59: 支出負担行為担当官 松江地方法務局長 西岡 典子 （島根県松江市東朝日町192-3） | D59: 2024-07-01 | E59: 公益社団法人島根県公共嘱託登記土地家屋調査士協会 島根県松江市末次本町91-2 | F59: 9280005000216 | G59: 一般競争入札 | H59: 35166275 | I59: 34650000 | J59: =IFERROR(ROUNDDOWN(I59/H59,3),"-") -> 0.985 | K59: 国庫債務負担行為
A60: 57 | B60: 法務局地図作成事業（令和6年度及び令和7年度）一式 | C60: 支出負担行為担当官 奈良地方法務局長 佐藤 淳一 （奈良県奈良市高畑町552） | D60: 2024-07-01 | E60: 公益社団法人奈良県公共嘱託登記土地家屋調査士協会 奈良県奈良市杉ヶ町47-3 | F60: 8150005000700 | G60: 一般競争入札 | H60: 44742790 | I60: 38753000 | J60: =IFERROR(ROUNDDOWN(I60/H60,3),"-") -> 0.866 | K60: 国庫債務負担行為 低入札価格調査案件
A61: 58 | B61: 産業廃棄物収集・運搬及び処分業務 | C61: 支出負担行為担当官 千葉地方検察庁検事正 長谷川 保 （千葉県千葉市中央区中央4-11-1） | D61: 2024-07-02 | E61: 株式会社近藤商会 千葉県千葉市花見川区犢橋町1743-2 | F61: 5040001002425 | G61: 一般競争入札 | H61: 2104984 | I61: 1147003 | J61: =IFERROR(ROUNDDOWN(I61/H61,3),"-") -> 0.544 | K61: 単価契約
A62: 59 | B62: 令和6年度広島刑務所消防設備点検業務等一式 | C62: 支出負担行為担当官 広島刑務所長 宮本 良一 （広島県広島市中区吉島町13-114） | D62: 2024-07-02 | E62: 株式会社オークスコーポレーション 岡山県岡山市南区豊浜町9-24 | F62: 1260001008585 | G62: 一般競争入札 | H62: 1678600 | I62: 1161600 | J62: =IFERROR(ROUNDDOWN(I62/H62,3),"-") -> 0.692
A63: 60 | B63: 令和6年度和歌山地方検察庁一般定期健康診断等業務委託 | C63: 支出負担行為担当官 和歌山地方検察庁検事正 柴田 真 （和歌山県和歌山市二番丁3） | D63: 2024-07-02 | E63: 一般社団法人和歌山市医師会 和歌山県和歌山市手平2-1-2 | F63: 5170005000825 | G63: 一般競争入札 | H63: 1461900 | I63: 1354879 | J63: =IFERROR(ROUNDDOWN(I63/H63,3),"-") -> 0.926 | K63: 単価契約
A64: 61 | B64: 令和6年度被収容者胸部検診業務委託契約 | C64: 支出負担行為担当官 大阪刑務所長 谷口 晃康 （大阪府堺市堺区田出井町6-1） | D64: 2024-07-02 | E64: 医療法人愛悠会 大阪府門真市殿島町6-4 | F64: 5120005014994 | G64: 一般競争入札 | H64: 1851300 | I64: 1402500 | J64: =IFERROR(ROUNDDOWN(I64/H64,3),"-") -> 0.757 | K64: 単価契約
A65: 62 | B65: 令和6年度水戸刑務所職員定期健康診断業務委託契約 | C65: 支出負担行為担当官 水戸刑務所長 原田 博 （茨城県ひたちなか市市毛847） | D65: 2024-07-02 | E65: 公益財団法人茨城県総合健診協会 茨城県水戸市笠原町489-5 | F65: 8050005010668 | G65: 一般競争入札 | H65: 2345640 | I65: 2345640 | J65: =IFERROR(ROUNDDOWN(I65/H65,3),"-") -> 1 | K65: 単価契約
A66: 63 | B66: 養育費請求のための民事執行手続に関する調査研究業務の請負 一式 | C66: 支出負担行為担当官 法務省大臣官房会計課長 村松 秀樹 （東京都千代田区霞が関1-1-1） | D66: 2024-07-02 | E66: 日本加除出版株式会社 東京都豊島区南長崎3-16-6 | F66: 8013301009172 | G66: 一般競争入札（総合評価落札方式） | H66: 8433700 | I66: 6193000 | J66: =IFERROR(ROUNDDOWN(I66/H66,3),"-") -> 0.734
A67: 64 | B67: 職員健康診断業務委託契約 | C67: 支出負担行為担当官 千葉地方検察庁検事正 長谷川 保 （千葉県千葉市中央区中央4-11-1） | D67: 2024-07-02 | E67: 医療法人社団新虎の門会 東京都江東区北砂7-6-2 | F67: 5010605001767 | G67: 一般競争入札 | H67: 6805987 | I67: 6256910 | J67: =IFERROR(ROUNDDOWN(I67/H67,3),"-") -> 0.919 | K67: 単価契約 再度公告入札
A68: 65 | B68: 東京出入国在留管理局千葉出張所における移動棚設置作業一式請負契約 | C68: 支出負担行為担当官 東京出入国在留管理局長 宮尾 芳彰 （東京都港区港南5-5-30） | D68: 2024-07-02 | E68: 有限会社南信堂 東京都千代田区九段南3-7-7 | F68: 7010002013091 | G68: 一般競争入札 | H68: 6505994 | I68: 6364600 | J68: =IFERROR(ROUNDDOWN(I68/H68,3),"-") -> 0.978
A69: 66 | B69: 秋田地方法務局地図作成事業一式 | C69: 支出負担行為担当官 秋田地方法務局長 田中 直樹 （秋田県秋田市山王7-1-3） | D69: 2024-07-02 | E69: 公益社団法人秋田県公共嘱託登記土地家屋調査士協会 秋田県秋田市山王6-1-13 | F69: 8410005000302 | G69: 一般競争入札 | H69: 71484800 | I69: 69190000 | J69: =IFERROR(ROUNDDOWN(I69/H69,3),"-") -> 0.967 | K69: 国庫債務負担行為
A70: 67 | B70: 令和6・7年度法務局地図作成事業（松山雄郡地区）一式 | C70: 支出負担行為担当官 松山地方法務局長 正木 開志 （愛媛県松山市宮田町188-6） | D70: 2024-07-02 | E70: 公益社団法人愛媛県公共嘱託登記土地家屋調査士協会 愛媛県松山市南江戸1-4-14 | F70: 9500005006917 | G70: 一般競争入札 | H70: 92359887 | I70: 75900000 | J70: =IFERROR(ROUNDDOWN(I70/H70,3),"-") -> 0.821 | K70: 国庫債務負担行為
A71: 68 | B71: 令和6・7年度法務局地図作成事業一式 | C71: 支出負担行為担当官 静岡地方法務局長 宗野 有美子 （静岡県静岡市葵区追手町9-50） | D71: 2024-07-02 | E71: 公益社団法人静岡県公共嘱託登記土地家屋調査士協会 静岡県静岡市駿河区曲金6-16-10 | F71: 4080005006188 | G71: 一般競争入札 | H71: 123353456 | I71: 123200000 | J71: =IFERROR(ROUNDDOWN(I71/H71,3),"-") -> 0.998 | K71: 国庫債務負担行為 再度公告入札
A72: 69 | B72: 出入国在留管理庁西センタ無停電電源装置の供給等 一式 | C72: 支出負担行為担当官 出入国在留管理庁次長 丸山 秀治 （東京都千代田区霞が関1-1-1） | D72: 2024-07-02 | E72: エフサステクノロジーズ株式会社 神奈川県川崎市幸区大宮町1-5 | F72: 8010401056384 | G72: 一般競争入札（総合評価落札方式） | H72: 224851000 | I72: 181500000 | J72: =IFERROR(ROUNDDOWN(I72/H72,3),"-") -> 0.807 | K72: 5か年分の保守料を含む。 本体価格合計 166,650,000円 保守料総額 14,850,000円
A73: 70 | B73: 岐阜法務総合庁舎ほか3庁舎の建築物、建築設備及び防火設備定期点検業務請負契約 | C73: 支出負担行為担当官 岐阜地方検察庁検事正 友添 太郎 （岐阜県岐阜市美江寺町2-8） | D73: 2024-07-03 | E73: 株式会社技研サービス 岐阜県岐阜市薮田南3-7-20 | F73: 2200001001537 | G73: 一般競争入札 | H73: 1246300 | I73: 605000 | J73: =IFERROR(ROUNDDOWN(I73/H73,3),"-") -> 0.485 | K73: 一括調達（岐阜地方法務局、中部地方更生保護委員会、名古屋出入国在留管理局）
A74: 71 | B74: 産業廃棄物処理業務委託契約 | C74: 支出負担行為担当官 大阪地方検察庁検事正 小弓場 文彦 （大阪府大阪市福島区福島1-1-60） | D74: 2024-07-03 | E74: 大栄環境株式会社 大阪府和泉市テクノステージ2-3-28 | F74: 6120101041611 | G74: 一般競争入札 | H74: 3200725 | I74: 3071030 | J74: =IFERROR(ROUNDDOWN(I74/H74,3),"-") -> 0.959 | K74: 単価契約 一括調達（大阪高等検察庁）
A75: 72 | B75: 東京拘置所職員健康診断業務委託単価契約 | C75: 支出負担行為担当官 東京拘置所長 柴﨑 正文 （東京都葛飾区小菅1-35-1） | D75: 2024-07-03 | E75: 医療法人社団俊秀会 東京都足立区綾瀬3-2-8 | F75: 1011805001296 | G75: 一般競争入札 | H75: 5182100 | I75: 4228840 | J75: =IFERROR(ROUNDDOWN(I75/H75,3),"-") -> 0.816 | K75: 単価契約
A76: 73 | B76: 「令和6年版再犯防止推進白書」印刷製本等業務の請負 一式 | C76: 支出負担行為担当官 法務省大臣官房会計課長 村松 秀樹 （東京都千代田区霞が関1-1-1） | D76: 2024-07-03 | E76: 株式会社サンワ 東京都千代田区飯田橋2-11-8 | F76: 8010001017910 | G76: 一般競争入札 | H76: 6683600 | I76: 5115000 | J76: =IFERROR(ROUNDDOWN(I76/H76,3),"-") -> 0.765
A77: 74 | B77: 長期相続登記等未了土地解消作業（登記名義人200人分）の委託一式 | C77: 支出負担行為担当官 秋田地方法務局長 田中 直樹 （秋田県秋田市山王7-1-3） | D77: 2024-07-03 | E77: 公益社団法人秋田県公共嘱託登記司法書士協会 秋田県秋田市山王6-9-1 | F77: 7410005000303 | G77: 一般競争入札 | H77: 7196112 | I77: 5720000 | J77: =IFERROR(ROUNDDOWN(I77/H77,3),"-") -> 0.794
A78: 75 | B78: 情報処理技術科及びビジネススキル科訓練用パソコン賃貸借契約 | C78: 支出負担行為担当官 山口刑務所長 内藤 睦 （山口県山口市松美町3-75） | D78: 2024-07-03 | E78: リコージャパン株式会社デジタルサービス営業本部山口支社山口営業部 山口県山口市小郡給領町1-20 | F78: 1010001110829 | G78: 一般競争入札 | H78: 6441600 | I78: 5806680 | J78: =IFERROR(ROUNDDOWN(I78/H78,3),"-") -> 0.901
A79: 76 | B79: 令和6年度広島法務総合庁舎非常用蓄電池更新業務請負契約 | C79: 支出負担行為担当官 広島高等検察庁検事長 和田 雅樹 （広島県広島市中区上八丁堀2-31） | D79: 2024-07-03 | E79: 広島日本電池販売株式会社 広島県広島市安佐南区祇園2-7-20 | F79: 8240001009538 | G79: 一般競争入札 | H79: 10624900 | I79: 7700000 | J79: =IFERROR(ROUNDDOWN(I79/H79,3),"-") -> 0.724 | K79: 一括調達（広島地方検察庁、中国地方更生保護委員会、広島出入国在留管理局、中国公安調査局）
A80: 77 | B80: 令和5年度函館少年鑑別支所少年保安システム等更新整備 | C80: 支出負担行為担当官 函館少年刑務所長 渡邊 真也 （北海道函館市金堀町6-11） | D80: 2024-07-03 | E80: 三菱電機システムサービス株式会社 東京都世田谷区太子堂4-1-1 | F80: 1010901011705 | G80: 一般競争入札 | H80: 21137404 | I80: 21010000 | J80: =IFERROR(ROUNDDOWN(I80/H80,3),"-") -> 0.993
A81: 78 | B81: 法務局地図作成事業請負契約（令和6年度及び令和7年度）一式 | C81: 支出負担行為担当官 佐賀地方法務局長 山口 正広 （佐賀県佐賀市城内2-10-20） | D81: 2024-07-03 | E81: 公益社団法人佐賀県公共嘱託登記土地家屋調査士協会 佐賀県佐賀市城内2-11-10-1 | F81: 8300005000040 | G81: 一般競争入札 | H81: 56163950 | I81: 56100000 | J81: =IFERROR(ROUNDDOWN(I81/H81,3),"-") -> 0.998 | K81: 国庫債務負担行為
A82: 79 | B82: 鳥取刑務所被収容者健康診断業務委託契約 | C82: 支出負担行為担当官 鳥取刑務所長 前田 昭浩 （鳥取県鳥取市下味野719） | D82: 2024-07-04 | E82: 一般財団法人いなば財団 鳥取県鳥取市秋里927-1 | F82: 3270005004751 | G82: 一般競争入札 | H82: 1952500 | I82: 1724250 | J82: =IFERROR(ROUNDDOWN(I82/H82,3),"-") -> 0.883 | K82: 単価契約
A83: 80 | B83: 炉筒煙管ボイラー煙管交換作業契約 | C83: 支出負担行為担当官 宮城刑務所長 林 文彦 （宮城県仙台市古城2-3-1） | D83: 2024-07-04 | E83: 濱商株式会社 宮城県仙台市青葉区中央1-20 | F83: 7370001008404 | G83: 一般競争入札 | H83: 2628091 | I83: 2530000 | J83: =IFERROR(ROUNDDOWN(I83/H83,3),"-") -> 0.962
A84: 81 | B84: 高松出入国在留管理局高知出張所における自動車交換購入契約 | C84: 支出負担行為担当官 高松出入国在留管理局長 島津 真佐志 （香川県高松市丸の内1-1） | D84: 2024-07-04 | E84: 株式会社日産サティオ高知 高知県高知市知寄町2-1-37 | F84: 8490001001065 | G84: 一般競争入札（総合評価落札方式） | H84: 3679625 | I84: 3328920 | J84: =IFERROR(ROUNDDOWN(I84/H84,3),"-") -> 0.904
A85: 82 | B85: 被収容者用パジャマ供給一式（1,492着） | C85: 支出負担行為担当官 東京拘置所長 柴﨑 正文 （東京都葛飾区小菅1-35-1） | D85: 2024-07-04 | E85: 新陽株式会社 東京都中央区日本橋室町4-3-5 | F85: 1010001045703 | G85: 一般競争入札 | H85: 4103865 | I85: 3925801 | J85: =IFERROR(ROUNDDOWN(I85/H85,3),"-") -> 0.956
A86: 83 | B86: 被収容者用タオルの供給一式（72,658枚） | C86: 支出負担行為担当官 東京拘置所長 柴﨑 正文 （東京都葛飾区小菅1-35-1） | D86: 2024-07-04 | E86: 重光商事株式会社 石川県金沢市大野町4-レ40-170 | F86: 5220001003396 | G86: 一般競争入札 | H86: 4076113 | I86: 4076113 | J86: =IFERROR(ROUNDDOWN(I86/H86,3),"-") -> 1
A87: 84 | B87: 被収容者用防寒服ほか供給一式（606着） | C87: 支出負担行為担当官 東京拘置所長 柴﨑 正文 （東京都葛飾区小菅1-35-1） | D87: 2024-07-04 | E87: 東興産業株式会社 東京都中央区日本橋蠣殻町1-36-2 | F87: 8012301001726 | G87: 一般競争入札 | H87: 4689775 | I87: 4633156 | J87: =IFERROR(ROUNDDOWN(I87/H87,3),"-") -> 0.987
A88: 85 | B88: 「令和6年版犯罪白書」及び「令和6年版犯罪白書英文資料」の印刷製本等業務の請負 一式 | C88: 支出負担行為担当官 法務省大臣官房会計課長 村松 秀樹 （東京都千代田区霞が関1-1-1） | D88: 2024-07-04 | E88: 昭和情報プロセス株式会社 東京都港区三田5-14-3 | F88: 8010401014516 | G88: 一般競争入札 | H88: 5358683 | I88: 5038000 | J88: =IFERROR(ROUNDDOWN(I88/H88,3),"-") -> 0.94 | K88: 単価契約
A89: 86 | B89: 令和6年度福岡出入国在留管理局那覇支局における複合機賃貸借及び保守契約（5台） | C89: 支出負担行為担当官 福岡出入国在留管理局長 山﨑 浩一 （福岡県福岡市中央区舞鶴3-5-25） | D89: 2024-07-04 | E89: 富士フイルムビジネスイノベーションジャパン株式会社沖縄営業所 沖縄県那覇市久茂地1-7-1 | F89: 1011101015050 | G89: 一般競争入札 | H89: 7258013 | I89: 5739668 | J89: =IFERROR(ROUNDDOWN(I89/H89,3),"-") -> 0.79 | K89: 単価契約 契約金額合計 5,739,668円 賃貸借料（60ヶ月） 1,089,000円 保守料（60ヶ月） 4,650,668円
A90: 87 | B90: 出入国在留管理庁城南分室（仮称）電話交換機等の供給契約 一式 | C90: 支出負担行為担当官 出入国在留管理庁次長 丸山 秀治 （東京都千代田区霞が関1-1-1） | D90: 2024-07-04 | E90: 東陽工業株式会社 東京都港区西新橋2-39-9 | F90: 7010401020291 | G90: 一般競争入札 | H90: 6330137 | I90: 6314000 | J90: =IFERROR(ROUNDDOWN(I90/H90,3),"-") -> 0.997
A91: 88 | B91: 被収容者用タオルケットの供給一式（3,920枚） | C91: 支出負担行為担当官 東京拘置所長 柴﨑 正文 （東京都葛飾区小菅1-35-1） | D91: 2024-07-04 | E91: 新陽株式会社 東京都中央区日本橋室町4-3-5 | F91: 1010001045703 | G91: 一般競争入札 | H91: 7455448 | I91: 7330400 | J91: =IFERROR(ROUNDDOWN(I91/H91,3),"-") -> 0.983
A92: 89 | B92: 令和6年度第2四半期分広島矯正管区内の矯正施設用うるち玄米購入契約（予定数量72,090キログラム） | C92: 支出負担行為担当官 広島刑務所長 宮本 良一 （広島県広島市中区吉島町13-114） | D92: 2024-07-04 | E92: 株式会社神明 東京都中央区日本橋小網町16-15 | F92: 9010001191011 | G92: 一般競争入札 | H92: 24005970 | I92: 22838112 | J92: =IFERROR(ROUNDDOWN(I92/H92,3),"-") -> 0.951 | K92: 単価契約 一括調達（鳥取刑務所、松江刑務所、岡山刑務所、広島刑務所、尾道刑務支所、山口刑務所、岩国刑務所、広島拘置所、岡山少年院、広島少年院）
A93: 90 | B93: 法務局地図作成事業 一式 | C93: 支出負担行為担当官 釧路地方法務局長 竹村 啓人 （北海道釧路市幸町10-3） | D93: 2024-07-04 | E93: 公益社団法人釧路公共嘱託登記土地家屋調査士協会 北海道釧路市宮本1-2-4 | F93: 8460005000025 | G93: 一般競争入札 | H93: 70415589 | I93: 70400000 | J93: =IFERROR(ROUNDDOWN(I93/H93,3),"-") -> 0.999 | K93: 国庫債務負担行為
A94: 91 | B94: 令和6年度及び令和7年度法務局地図作成事業 | C94: 支出負担行為担当官 高知地方法務局長 高山 達司 （高知県高知市栄田町2-2-10） | D94: 2024-07-04 | E94: 公益社団法人高知県公共嘱託登記土地家屋調査士協会 高知県高知市越前町2-7-11 | F94: 4490005006056 | G94: 一般競争入札 | H94: 89571430 | I94: 86900000 | J94: =IFERROR(ROUNDDOWN(I94/H94,3),"-") -> 0.97 | K94: 国庫債務負担行為
A95: 92 | B95: 令和5年度三重刑務所矯正施設警備システム緊急整備（総合警備システム） | C95: 支出負担行為担当官 三重刑務所長 井上 済 （三重県津市修成町16-1） | D95: 2024-07-04 | E95: 三菱電機システムサービス株式会社 愛知県名古屋市東区大幸南1-1-9 | F95: 1010901011705 | G95: 一般競争入札 | H95: 103872467 | I95: 102190000 | J95: =IFERROR(ROUNDDOWN(I95/H95,3),"-") -> 0.983
A96: 93 | B96: 令和6・7年度法務局地図作成事業請負契約 | C96: 支出負担行為担当官 大津地方法務局長 松尾 力実 （滋賀県大津市京町3-1-1） | D96: 2024-07-04 | E96: JFD土地家屋調査士法人 大阪府大阪市西区西本町1-4-1 | F96: 5120005010325 | G96: 一般競争入札 | H96: 115979238 | I96: 108790000 | J96: =IFERROR(ROUNDDOWN(I96/H96,3),"-") -> 0.938 | K96: 国庫債務負担行為
A97: 94 | B97: 令和6年度佐賀地方検察庁一般定期健康診断等業務委託契約 | C97: 支出負担行為担当官 佐賀地方検察庁検事正 山上 富蔵 （佐賀県佐賀市中の小路5-25） | D97: 2024-07-05 | E97: 一般社団法人日田市医師会立日田検診センター 大分県日田市清水町803-1 | F97: 5320005006955 | G97: 一般競争入札 | H97: 1058200 | I97: 1016400 | J97: =IFERROR(ROUNDDOWN(I97/H97,3),"-") -> 0.96 | K97: 単価契約
A98: 95 | B98: 西宮地方合同庁舎ほか3庁非常用自家発電設備点検整備業務 | C98: 支出負担行為担当官 神戸地方法務局長 三木 秀樹 （兵庫県神戸市中央区波止場町1-1） | D98: 2024-07-05 | E98: CSK 大阪府東大阪市荒本新町5-31 | F98: - | G98: 一般競争入札 | H98: 2782599 | I98: 1438212 | J98: =IFERROR(ROUNDDOWN(I98/H98,3),"-") -> 0.516 | K98: 共同調達（第五管区海上保安本部、兵庫労働局、神戸地方検察庁、近畿地方更生保護委員会） 予定価格総額 3,453,068円 契約金額総額 1,784,750円
A99: 96 | B99: 物品供給契約（LTOデータカートリッジ及びバーコードラベル147個、LTOクリーニングテープ及びバーコードラベル16個） | C99: 支出負担行為担当官 札幌法務局長 中村 誠 （北海道札幌市北区北八条西2-1-1） | D99: 2024-07-05 | E99: 富士フイルムビジネスイノベーションジャパン株式会社北海道支社 北海道札幌市中央区大通西6-1 | F99: 1011101015050 | G99: 一般競争入札 | H99: 2013881 | I99: 1594230 | J99: =IFERROR(ROUNDDOWN(I99/H99,3),"-") -> 0.791
A100: 97 | B100: 令和6年度広島少年院消防ポンプ更新一式 | C100: 支出負担行為担当官 広島少年院長 小山 浩紀 （広島県東広島市八本松町原11174-31） | D100: 2024-07-05 | E100: 株式会社アメニティライフ 広島県広島市南区東雲1-10-12 | F100: 7240001011552 | G100: 一般競争入札 | H100: 2132900 | I100: 2035000 | J100: =IFERROR(ROUNDDOWN(I100/H100,3),"-") -> 0.954
A101: 98 | B101: 乗用自動車（1台）交換契約 | C101: 支出負担行為担当官 奈良地方法務局長 佐藤 淳一 （奈良県奈良市高畑町552） | D101: 2024-07-05 | E101: 奈良トヨタ株式会社 奈良県奈良市南京終町2-269 | F101: 6150001001745 | G101: 一般競争入札（総合評価落札方式） | H101: 2734051 | I101: 2610000 | J101: =IFERROR(ROUNDDOWN(I101/H101,3),"-") -> 0.954
A102: 99 | B102: 長期相続登記等未了土地解消作業（登記名義人200名分）の委託 一式 | C102: 支出負担行為担当官 金沢地方法務局長 石田 正信 （石川県金沢市新神田4-3-10） | D102: 2024-07-05 | E102: 一般社団法人中央公共嘱託登記土地家屋調査士協会 大阪府大阪市中央区平野町1-6-9 | F102: 6120005012080 | G102: 一般競争入札 | H102: 6845039 | I102: 5240000 | J102: =IFERROR(ROUNDDOWN(I102/H102,3),"-") -> 0.765
A103: 100 | B103: 広島法務総合庁舎で使用する都市ガス需給契約 | C103: 支出負担行為担当官 広島高等検察庁検事長 和田 雅樹 （広島県広島市中区上八丁堀2-31） | D103: 2024-07-05 | E103: 広島ガス株式会社 広島県広島市南区皆実町2-7-1 | F103: 2240001009205 | G103: 一般競争入札 | H103: 13724776 | I103: 13724776 | J103: =IFERROR(ROUNDDOWN(I103/H103,3),"-") -> 1 | K103: 単価契約 一括調達（広島地方検察庁、中国地方更生保護委員会、広島出入国在留管理局、中国公安調査局）
A104: 101 | B104: 令和5年度旭川少年鑑別所少年保安システム更新整備契約 | C104: 支出負担行為担当官 旭川少年鑑別所長 泉水 利夫 （北海道旭川市豊岡1-1-3-24） | D104: 2024-07-05 | E104: 株式会社SHINKO 東京都台東区浅草橋5-20-8 | F104: 7010501036634 | G104: 一般競争入札 | H104: 19027164 | I104: 16467000 | J104: =IFERROR(ROUNDDOWN(I104/H104,3),"-") -> 0.865
A105: 102 | B105: 令和6,7年度大都市型法務局地図作成事業請負契約 | C105: 支出負担行為担当官 千葉地方法務局長 蔦 啓一郎 （千葉県千葉市中央区中央港1-11-3） | D105: 2024-07-05 | E105: 公益社団法人千葉県公共嘱託登記土地家屋調査士協会 千葉県千葉市中央区中央港1-23-25 | F105: 6040005001208 | G105: 一般競争入札 | H105: 31864749 | I105: 29700000 | J105: =IFERROR(ROUNDDOWN(I105/H105,3),"-") -> 0.932 | K105: 国庫債務負担行為
A106: 103 | B106: 法務局地図作成事業請負契約 | C106: 支出負担行為担当官 前橋地方法務局長 大宮 由紀枝 （群馬県前橋市大手町2-3-1） | D106: 2024-07-05 | E106: 公益社団法人群馬県公共嘱託登記土地家屋調査士協会 群馬県前橋市鶴光路町19-2 | F106: 4070005000968 | G106: 一般競争入札 | H106: 57894016 | I106: 47116300 | J106: =IFERROR(ROUNDDOWN(I106/H106,3),"-") -> 0.813 | K106: 国庫債務負担行為
A107: 104 | B107: 法務局地図作成事業（令和6年度及び令和7年度）一式 | C107: 支出負担行為担当官 福井地方法務局長 小杉 悦子 （福井県福井市春山1-1-54） | D107: 2024-07-05 | E107: 公益社団法人福井県公共嘱託登記土地家屋調査士協会 福井県福井市下馬2-314 | F107: 3210005000277 | G107: 一般競争入札 | H107: 51596006 | I107: 50292000 | J107: =IFERROR(ROUNDDOWN(I107/H107,3),"-") -> 0.974 | K107: 国庫債務負担行為
A108: 105 | B108: 産業廃棄物の処分業務 | C108: 支出負担行為担当官 大阪高等検察庁検事長 上冨 敏伸 （大阪府大阪市福島区福島1-1-60） | D108: 2024-07-08 | E108: 関西クリアセンター株式会社 大阪府堺市西区築港新町3-27-17 | F108: 7120101028921 | G108: 一般競争入札 | H108: 1039599 | I108: 1039599 | J108: =IFERROR(ROUNDDOWN(I108/H108,3),"-") -> 1 | K108: 単価契約
A109: 106 | B109: A重油JIS1種1号物品供給契約 | C109: 支出負担行為担当官 山口刑務所長 内藤 睦 （山口県山口市松美町3-75） | D109: 2024-07-08 | E109: 林兼石油株式会社 福岡県福岡市中央区渡辺通4-10-10 | F109: 1290001009738 | G109: 一般競争入札 | H109: 2937000 | I109: 2739000 | J109: =IFERROR(ROUNDDOWN(I109/H109,3),"-") -> 0.932 | K109: 単価契約
A110: 107 | B110: 令和6年度笠松刑務所等医療資材等供給単価契約（93品目） | C110: 支出負担行為担当官 笠松刑務所長 齋藤 晶絵 （岐阜県羽島郡笠松町中川町23） | D110: 2024-07-08 | E110: 株式会社ムトウ 北海道札幌市北区11条西4-1-15 | F110: 2430001016743 | G110: 一般競争入札 | H110: 5296886 | I110: 3677728 | J110: =IFERROR(ROUNDDOWN(I110/H110,3),"-") -> 0.694 | K110: 単価契約 一括調達（岐阜刑務所、岐阜少年鑑別所）
A111: 108 | B111: 岡山刑務所ボイラー点検整備業務 | C111: 支出負担行為担当官 岡山刑務所長 山道 幸伸 （岡山県岡山市北区牟佐765） | D111: 2024-07-08 | E111: 岡山汽水工業有限会社 岡山県岡山市北区番町1-4-13 | F111: 1260002001671 | G111: 一般競争入札 | H111: 4389000 | I111: 4224000 | J111: =IFERROR(ROUNDDOWN(I111/H111,3),"-") -> 0.962
A112: 109 | B112: 令和6年度人権イメージキャラクター・送風型バルーン式着ぐるみ製作業務 一式 | C112: 支出負担行為担当官 法務省大臣官房会計課長 村松 秀樹 （東京都千代田区霞が関1-1-1） | D112: 2024-07-08 | E112: 株式会社平井星光堂 大阪府大阪市中央区北浜3-1-11 | F112: 6120001087993 | G112: 一般競争入札 | H112: 12162222 | I112: 11127160 | J112: =IFERROR(ROUNDDOWN(I112/H112,3),"-") -> 0.914
A113: 110 | B113: 法務局地図作成事業（令和6年度及び令和7年度）の請負一式 | C113: 支出負担行為担当官 和歌山地方法務局長 堤 秀昭 （和歌山県和歌山市二番丁3） | D113: 2024-07-08 | E113: 登記安心プロネット土地家屋調査士法人 兵庫県宝塚市中州1-4-27 | F113: 7140005019098 | G113: 一般競争入札 | H113: 99311186 | I113: 66000000 | J113: =IFERROR(ROUNDDOWN(I113/H113,3),"-") -> 0.664 | K113: 国庫債務負担行為
A114: 111 | B114: 法務局地図作成事業請負契約 | C114: 支出負担行為担当官 仙台法務局長 杉浦 直紀 （宮城県仙台市青葉区春日町7-25） | D114: 2024-07-08 | E114: あおぞら土地家屋調査士法人 広島県広島市中区昭和町9-21 | F114: 2240005002734 | G114: 一般競争入札 | H114: 123329285 | I114: 108900000 | J114: =IFERROR(ROUNDDOWN(I114/H114,3),"-") -> 0.883 | K114: 国庫債務負担行為
A115: 112 | B115: 震災復興型法務局地図作成事業請負契約 | C115: 支出負担行為担当官 仙台法務局長 杉浦 直紀 （宮城県仙台市青葉区春日町7-25） | D115: 2024-07-08 | E115: 公益社団法人宮城県公共嘱託登記土地家屋調査士協会 宮城県仙台市青葉区二日町18-3 | F115: 8370005000091 | G115: 一般競争入札 | H115: 137964669 | I115: 135300000 | J115: =IFERROR(ROUNDDOWN(I115/H115,3),"-") -> 0.98 | K115: 国庫債務負担行為
A116: 113 | B116: 登記情報システムの端末装置・帳票編集サーバ等の更改に伴う特定ソフトウェアの導入、賃借及び保守業務 一式 | C116: 支出負担行為担当官 法務省大臣官房会計課長 村松 秀樹 （東京都千代田区霞が関1-1-1） | D116: 2024-07-08 | E116: 株式会社JECC 東京都千代田区丸の内3-4-1 | F116: 2010001033475 | G116: 一般競争入札（総合評価落札方式） | H116: 1824548990 | I116: 1696750000 | J116: =IFERROR(ROUNDDOWN(I116/H116,3),"-") -> 0.929 | K116: 国庫債務負担行為
A117: 114 | B117: デジタル複合機1台購入等 一式 | C117: 支出負担行為担当官 出入国在留管理庁次長 杉山 徳明 （東京都千代田区霞が関1-1-1） | D117: 2024-07-09 | E117: コニカミノルタジャパン株式会社 東京都港区芝浦1-1-1 | F117: 9013401005070 | G117: 一般競争入札 | H117: 1986630 | I117: 1872640 | J117: =IFERROR(ROUNDDOWN(I117/H117,3),"-") -> 0.942 | K117: 保守料を含む。 本体価格合計 728,200円 保守料 1,144,440円
A118: 115 | B118: NEC製プリンタ（PR-L4C150）用消耗品の供給 | C118: 支出負担行為担当官 出入国在留管理庁次長 杉山 徳明 （東京都千代田区霞が関1-1-1） | D118: 2024-07-09 | E118: NECフィールディング株式会社 東京都台東区柳橋2-19-6 | F118: 3010401022977 | G118: 一般競争入札 | H118: 3130116 | I118: 2948660 | J118: =IFERROR(ROUNDDOWN(I118/H118,3),"-") -> 0.942
A119: 116 | B119: 油圧式クリッカー調達に係る契約 | C119: 支出負担行為担当官 福岡刑務所長 竹内 徹 （福岡県糟屋郡宇美町障子岳南6-1-1） | D119: 2024-07-09 | E119: 株式会社イイノ 大阪府堺市堺区今池町2-10-26 | F119: 8120101000508 | G119: 一般競争入札 | H119: 3329700 | I119: 3080000 | J119: =IFERROR(ROUNDDOWN(I119/H119,3),"-") -> 0.925
A120: 117 | B120: 令和6年度定期健康診断及びストレスチェック検査等業務委託 | C120: 支出負担行為担当官 仙台高等検察庁検事長 中村 孝 （宮城県仙台市青葉区片平1-3-1） | D120: 2024-07-09 | E120: 一般財団法人宮城県予防医学協会 宮城県仙台市泉区高森2-1-39 | F120: 7370005000349 | G120: 一般競争入札 | H120: 3900886 | I120: 3517767 | J120: =IFERROR(ROUNDDOWN(I120/H120,3),"-") -> 0.901 | K120: 単価契約 一括調達（仙台地方検察庁、東北地方更生保護委員会）
A121: 118 | B121: 職員健康診断業務委託契約 | C121: 支出負担行為担当官 大阪拘置所長 和田 浩史 （大阪府大阪市都島区友渕町1-2-5） | D121: 2024-07-09 | E121: 医療法人社団日健会 東京都江東区亀戸6-56-15 | F121: 4010605000547 | G121: 一般競争入札 | H121: 3972309 | I121: 3577123 | J121: =IFERROR(ROUNDDOWN(I121/H121,3),"-") -> 0.9 | K121: 単価契約
A122: 119 | B122: 仙台少年鑑別所通行鍵管理システム等更新整備一式 | C122: 支出負担行為担当官 仙台少年鑑別所長 清水 大輔 （宮城県仙台市若林区古城3-27-17） | D122: 2024-07-09 | E122: 株式会社SHINKO 東京都台東区浅草橋5-20-8 | F122: 7010501036634 | G122: 一般競争入札 | H122: 6490000 | I122: 4037000 | J122: =IFERROR(ROUNDDOWN(I122/H122,3),"-") -> 0.622
A123: 120 | B123: 自動車（マイクロバス）交換購入契約 | C123: 支出負担行為担当官 入国者収容所東日本入国管理センター所長 津留 信弘 （茨城県牛久市久野町1766-1） | D123: 2024-07-09 | E123: 三菱ふそうトラック･バス株式会社北関東ふそう土浦支店 茨城県かすみがうら市上稲吉2044 | F123: 7020001078696 | G123: 一般競争入札（総合評価落札方式） | H123: 9929830 | I123: 8425620 | J123: =IFERROR(ROUNDDOWN(I123/H123,3),"-") -> 0.848
A124: 121 | B124: 令和6年度及び令和7年度法務局地図作成事業請負契約 | C124: 支出負担行為担当官 鳥取地方法務局長 松村 亮 （鳥取県鳥取市東町2-302） | D124: 2024-07-09 | E124: 公益社団法人鳥取県公共嘱託登記土地家屋調査士協会 鳥取県鳥取市西町1-314-1 | F124: 5270005000476 | G124: 一般競争入札 | H124: 45546009 | I124: 44000000 | J124: =IFERROR(ROUNDDOWN(I124/H124,3),"-") -> 0.966 | K124: 国庫債務負担行為
A125: 122 | B125: 連携システム更改に伴う登記情報システムの機能開発及び切替支援業務の請負 一式 | C125: 支出負担行為担当官 法務省大臣官房会計課長 村松 秀樹 （東京都千代田区霞が関1-1-1） | D125: 2024-07-09 | E125: 富士通株式会社 神奈川県川崎市幸区大宮町1-5 | F125: 1020001071491 | G125: 一般競争入札（総合評価落札方式） | H125: 660427999 | I125: 654720000 | J125: =IFERROR(ROUNDDOWN(I125/H125,3),"-") -> 0.991 | K125: 国庫債務負担行為
A126: 123 | B126: 外国人出入国情報システムの更改に係るクラウド環境の提供等 一式 | C126: 支出負担行為担当官 出入国在留管理庁次長 杉山 徳明 （東京都千代田区霞が関1-1-1） | D126: 2024-07-09 | E126: 株式会社日立製作所 東京都千代田区丸の内1-6-6 | F126: 7010001008844 | G126: 一般競争入札（総合評価落札方式） | H126: 7083375706 | I126: 3733703053 | J126: =IFERROR(ROUNDDOWN(I126/H126,3),"-") -> 0.527 | K126: 国庫債務負担行為
A127: 124 | B127: 令和6年度大津地方検察庁健康診断業務等委託 | C127: 支出負担行為担当官 大津地方検察庁検事正 川越 弘毅 （滋賀県大津市京町3-1-1） | D127: 2024-07-10 | E127: 一般財団法人近畿健康管理センター 滋賀県大津市木下町10-10 | F127: 3160005000134 | G127: 一般競争入札 | H127: 1741300 | I127: 1425985 | J127: =IFERROR(ROUNDDOWN(I127/H127,3),"-") -> 0.818 | K127: 単価契約
A128: 125 | B128: 令和6年度職員定期健康診断業務等委託契約 | C128: 支出負担行為担当官 長崎刑務所長 村上 正剛 （長崎県諫早市小川町1650） | D128: 2024-07-10 | E128: 公益財団法人長崎県健康事業団 長崎県諫早市多良見町化屋986-3 | F128: 2310005004533 | G128: 一般競争入札 | H128: 1919689 | I128: 1919689 | J128: =IFERROR(ROUNDDOWN(I128/H128,3),"-") -> 1
A129: 126 | B129: 千葉刑務所ファン付き作業服ベスト型等供給契約 | C129: 支出負担行為担当官 千葉刑務所長 倉田 克己 （千葉県千葉市若葉区貝塚町192） | D129: 2024-07-10 | E129: 株式会社八木繊維 静岡県富士市依田橋426-1 | F129: 9080101009866 | G129: 一般競争入札 | H129: 2677686 | I129: 2073819 | J129: =IFERROR(ROUNDDOWN(I129/H129,3),"-") -> 0.774
A130: 127 | B130: プレハブ冷凍庫整備一式（1個） | C130: 支出負担行為担当官 加古川刑務所長 浦方 亀世 （兵庫県加古川市加古川町大野1530） | D130: 2024-07-10 | E130: コウベエンジニアサービス株式会社 兵庫県神戸市兵庫区大開兵庫町1-4-29 | F130: 1140001013003 | G130: 一般競争入札 | H130: 3001354 | I130: 2365000 | J130: =IFERROR(ROUNDDOWN(I130/H130,3),"-") -> 0.787
A131: 128 | B131: 令和6年度アイヌの人々に関する人権問題ほか5件のインターネット広告配信業務等の請負 一式 | C131: 支出負担行為担当官 法務省大臣官房会計課長 村松 秀樹 （東京都千代田区霞が関1-1-1） | D131: 2024-07-10 | E131: 株式会社ビー･アンド･ディー 東京都中央区銀座5-13-16 | F131: 3010001071061 | G131: 一般競争入札 | H131: 21284384 | I131: 18678000 | J131: =IFERROR(ROUNDDOWN(I131/H131,3),"-") -> 0.877
A132: 129 | B132: 大都市型法務局地図作成事業一式 | C132: 支出負担行為担当官 横浜地方法務局長 鍛冶 宗宏 （神奈川県横浜市中区北仲通5-57） | D132: 2024-07-10 | E132: 公益社団法人神奈川県公共嘱託登記土地家屋調査士協会 神奈川県横浜市西区楠町18 | F132: 6020005002843 | G132: 一般競争入札 | H132: 26186067 | I132: 20350000 | J132: =IFERROR(ROUNDDOWN(I132/H132,3),"-") -> 0.777 | K132: 国庫債務負担行為
A133: 130 | B133: 令和6年度学生向け法教育セミナー運営等業務の委託 一式 | C133: 支出負担行為担当官 法務省大臣官房会計課長 村松 秀樹 （東京都千代田区霞が関1-1-1） | D133: 2024-07-11 | E133: 株式会社ウルフスタイル 東京都中央区築地1-9-11 | F133: 3010001137944 | G133: 一般競争入札 | H133: 1608255 | I133: 1441000 | J133: =IFERROR(ROUNDDOWN(I133/H133,3),"-") -> 0.896
A134: 131 | B134: 札幌第3合同庁舎受変電設備真空遮断器 等取替業務 | C134: 支出負担行為担当官 札幌高等検察庁検事長 山本 真千子 （北海道札幌市中央区大通西12） | D134: 2024-07-11 | E134: 北菱産業埠頭株式会社 北海道札幌市北区北31条西4-1-14 | F134: 1430001015614 | G134: 一般競争入札 | H134: 2527462 | I134: 2432430 | J134: =IFERROR(ROUNDDOWN(I134/H134,3),"-") -> 0.962 | K134: 共同調達（人事院北海道事務局、公正取引委員会、北海道防衛局、北海道地方更生保護委員会、札幌出入国在留管理局、北海道公安調査局、札幌家庭裁判所） 予定価格総額 4,800,400円 契約金額総額 4,620,000円
A135: 132 | B135: 堺拘置支所居室棟空調機器調達契約（9台） | C135: 支出負担行為担当官 大阪刑務所長 谷口 晃康 （大阪府堺市堺区田出井町6-1） | D135: 2024-07-11 | E135: 西嶋電気株式会社 大阪府堺市北区奥本町1-211 | F135: 7120101005474 | G135: 一般競争入札 | H135: 3388000 | I135: 3256000 | J135: =IFERROR(ROUNDDOWN(I135/H135,3),"-") -> 0.961
A136: 133 | B136: 令和6年度被収容者定期健康診断業務委託契約 | C136: 支出負担行為担当官 名古屋刑務所長 吉弘 基成 （愛知県みよし市ひばりヶ丘1-1） | D136: 2024-07-11 | E136: 一般社団法人名古屋公衆医学研究所 愛知県名古屋市中村区長筬4-23 | F136: 1180005004903 | G136: 一般競争入札 | H136: 6758345 | I136: 6488460 | J136: =IFERROR(ROUNDDOWN(I136/H136,3),"-") -> 0.96 | K136: 単価契約
A137: 134 | B137: 令和6年度静岡刑務所木工機械一式更新整備契約（スライドソー1台、ボーリングマシン1台） | C137: 支出負担行為担当官 静岡刑務所長 中瀬 光徳 （静岡県静岡市葵区東千代田3-1-1） | D137: 2024-07-11 | E137: 有限会社二葉機工 静岡県焼津市石脇上93-2 | F137: 3430001016775 | G137: 一般競争入札 | H137: 11990000 | I137: 7698900 | J137: =IFERROR(ROUNDDOWN(I137/H137,3),"-") -> 0.642
A138: 135 | B138: 高知刑務所不織布マスク用原材料供給契約 | C138: 支出負担行為担当官 高知刑務所長 田中 信昭 （高知県高知市布師田3604-1） | D138: 2024-07-11 | E138: 株式会社フィフティ･ヴィジョナリー 千葉県千葉市中央区浜野1216-64 | F138: 4040001009578 | G138: 一般競争入札 | H138: 20697600 | I138: 13956800 | J138: =IFERROR(ROUNDDOWN(I138/H138,3),"-") -> 0.674
A139: 136 | B139: 大都市型法務局地図作成事業（令和6年度・令和7年度）請負契約（751筆） | C139: 支出負担行為担当官 札幌法務局長 中村 誠 （北海道札幌市北区北八条西2-1-1） | D139: 2024-07-11 | E139: 公益社団法人札幌公共嘱託登記土地家屋調査士協会 北海道札幌市中央区南4西6ｰ8 | F139: 3430005000882 | G139: 一般競争入札 | H139: 32493218 | I139: 32230000 | J139: =IFERROR(ROUNDDOWN(I139/H139,3),"-") -> 0.991 | K139: 国庫債務負担行為
A140: 137 | B140: 法務局地図作成事業（令和6年度・令和7年度）請負契約（2,277筆） | C140: 支出負担行為担当官 札幌法務局長 中村 誠 （北海道札幌市北区北八条西2-1-1） | D140: 2024-07-11 | E140: 公益社団法人札幌公共嘱託登記土地家屋調査士協会 北海道札幌市中央区南4西6ｰ8 | F140: 3430005000882 | G140: 一般競争入札 | H140: 78404328 | I140: 78320000 | J140: =IFERROR(ROUNDDOWN(I140/H140,3),"-") -> 0.998 | K140: 国庫債務負担行為
A141: 138 | B141: 大都市型法務局地図作成事業（令和6年度及び令和7年度） | C141: 支出負担行為担当官 大阪法務局長 中川 博文 （大阪府大阪市中央区大手前3-1-41） | D141: 2024-07-11 | E141: 公益社団法人大阪公共嘱託登記土地家屋調査士協会 大阪府大阪市中央区船越町1-3-6 | F141: 5120005003238 | G141: 一般競争入札 | H141: 82306602 | I141: 81312000 | J141: =IFERROR(ROUNDDOWN(I141/H141,3),"-") -> 0.987 | K141: 国庫債務負担行為
A142: 139 | B142: 法務局地図作成事業（令和6年度及び令和7年度） | C142: 支出負担行為担当官 大阪法務局長 中川 博文 （大阪府大阪市中央区大手前3-1-41） | D142: 2024-07-11 | E142: 公益社団法人大阪公共嘱託登記土地家屋調査士協会 大阪府大阪市中央区船越町1-3-6 | F142: 5120005003238 | G142: 一般競争入札 | H142: 86003771 | I142: 85987000 | J142: =IFERROR(ROUNDDOWN(I142/H142,3),"-") -> 0.999 | K142: 国庫債務負担行為
A143: 140 | B143: 特定登録者情報システムのアプリケーションの更改及びクラウドサービスの構築等作業 一式 | C143: 支出負担行為担当官 出入国在留管理庁次長 杉山 徳明 （東京都千代田区霞が関1-1-1） | D143: 2024-07-11 | E143: 日本電気株式会社 東京都港区芝5-7-1 | F143: 7010401022916 | G143: 一般競争入札（総合評価落札方式） | H143: 412870920 | I143: 392370000 | J143: =IFERROR(ROUNDDOWN(I143/H143,3),"-") -> 0.95
A144: 141 | B144: 非常用備蓄食料等供給契約（6品目） | C144: 支出負担行為担当官 千葉地方検察庁検事正 長谷川 保 （千葉県千葉市中央区中央4-11-1） | D144: 2024-07-12 | E144: 株式会社サイボウ 埼玉県さいたま市見沼区卸町2-6-15 | F144: 3030001003582 | G144: 一般競争入札 | H144: 1702149 | I144: 949030 | J144: =IFERROR(ROUNDDOWN(I144/H144,3),"-") -> 0.557
A145: 142 | B145: 東京出入国在留管理局横浜支局における健康診断業務委託契約 | C145: 支出負担行為担当官 東京出入国在留管理局長 宮尾 芳彰 （東京都港区港南5-5-30） | D145: 2024-07-12 | E145: 一般財団法人産業保健協会 東京都大田区多摩川1-3-18 | F145: 4010805000041 | G145: 一般競争入札 | H145: 1929334 | I145: 1591249 | J145: =IFERROR(ROUNDDOWN(I145/H145,3),"-") -> 0.824 | K145: 単価契約
A146: 143 | B146: 令和6年度京都拘置所清掃業務委託契約 | C146: 支出負担行為担当官 京都拘置所長 松谷 憲一 （京都府京都市伏見区竹田向代町138） | D146: 2024-07-12 | E146: 株式会社タクミサービス 京都府京都市北区紫野南花ノ坊町36 | F146: 4130001061339 | G146: 一般競争入札 | H146: 2312200 | I146: 2288000 | J146: =IFERROR(ROUNDDOWN(I146/H146,3),"-") -> 0.989
A147: 144 | B147: 東京出入国在留管理局羽田空港支局における健康診断業務委託契約 | C147: 支出負担行為担当官 東京出入国在留管理局長 宮尾 芳彰 （東京都港区港南5-5-30） | D147: 2024-07-12 | E147: 医療法人社団日健会 東京都江東区亀戸6-56-15 | F147: 4010605000547 | G147: 一般競争入札 | H147: 3440800 | I147: 2724700 | J147: =IFERROR(ROUNDDOWN(I147/H147,3),"-") -> 0.791 | K147: 単価契約
A148: 145 | B148: 少年用綾織縞地製織用原糸混紡糸白色調達契約 | C148: 支出負担行為担当官 加古川刑務所長 浦方 亀世 （兵庫県加古川市加古川町大野1530） | D148: 2024-07-12 | E148: 株式会社カマタニ 兵庫県姫路市御国野町国分寺78 | F148: 2140001058369 | G148: 一般競争入札 | H148: 4025033 | I148: 3097600 | J148: =IFERROR(ROUNDDOWN(I148/H148,3),"-") -> 0.769
A149: 146 | B149: 少年用綾織縞地製織用原糸混紡糸グレー色調達契約 | C149: 支出負担行為担当官 加古川刑務所長 浦方 亀世 （兵庫県加古川市加古川町大野1530） | D149: 2024-07-12 | E149: 株式会社カマタニ 兵庫県姫路市御国野町国分寺78 | F149: 2140001058369 | G149: 一般競争入札 | H149: 3895314 | I149: 3110800 | J149: =IFERROR(ROUNDDOWN(I149/H149,3),"-") -> 0.798
A150: 147 | B150: 令和5年度名古屋拘置所矯正官署設備緊急整備契約（空調設備更新等整備） | C150: 支出負担行為担当官 名古屋拘置所長 三角 渉 （愛知県名古屋市東区白壁1-1） | D150: 2024-07-12 | E150: シューワ株式会社 大阪府堺市中区陶器北244-5 | F150: 1120101003418 | G150: 一般競争入札 | H150: 4112002 | I150: 3850000 | J150: =IFERROR(ROUNDDOWN(I150/H150,3),"-") -> 0.936
A151: 148 | B151: 業務用統計ソフト一式調達契約（8品目） | C151: 支出負担行為担当官 東日本成人矯正医療センター長 奥村 雄介 （東京都昭島市もくせいの杜2-1-9） | D151: 2024-07-12 | E151: スタッツギルド株式会社 千葉県浦安市入船1-5-2 | F151: 7010001145225 | G151: 一般競争入札 | H151: 7920000 | I151: 5561600 | J151: =IFERROR(ROUNDDOWN(I151/H151,3),"-") -> 0.702
A152: 149 | B152: 縞柄布団地製織用原糸混紡糸さび色調達契約 | C152: 支出負担行為担当官 加古川刑務所長 浦方 亀世 （兵庫県加古川市加古川町大野1530） | D152: 2024-07-12 | E152: 株式会社ムラカミ 北海道札幌市中央区北13条西17-1-36 | F152: 3430001016775 | G152: 一般競争入札 | H152: 9164826 | I152: 8547000 | J152: =IFERROR(ROUNDDOWN(I152/H152,3),"-") -> 0.932
A153: 150 | B153: パンツ地製織用原糸混紡糸調達契約 | C153: 支出負担行為担当官 加古川刑務所長 浦方 亀世 （兵庫県加古川市加古川町大野1530） | D153: 2024-07-12 | E153: イズミ産業株式会社 東京都中央区日本橋富沢町5-4 | F153: 9010001000634 | G153: 一般競争入札 | H153: 10726250 | I153: 9223500 | J153: =IFERROR(ROUNDDOWN(I153/H153,3),"-") -> 0.859
A154: 151 | B154: 被収容者用靴下の供給一式（47,762枚） | C154: 支出負担行為担当官 東京拘置所長 柴﨑 正文 （東京都葛飾区小菅1-35-1） | D154: 2024-07-12 | E154: 西垣靴下株式会社 奈良県大和高田市大字大谷61 | F154: 6150001013237 | G154: 一般競争入札 | H154: 10768700 | I154: 9472577 | J154: =IFERROR(ROUNDDOWN(I154/H154,3),"-") -> 0.879
A155: 152 | B155: 網走刑務所二見ケ岡農場新営工事（第2期）に伴う井水ポンプ等設置一式契約 | C155: 支出負担行為担当官 網走刑務所長 中村 寛之 （北海道網走市字三眺） | D155: 2024-07-12 | E155: 株式会社早水組 北海道網走市南2条西5-1-1 | F155: 8460301003219 | G155: 一般競争入札 | H155: 11187000 | I155: 10890000 | J155: =IFERROR(ROUNDDOWN(I155/H155,3),"-") -> 0.973
A156: 153 | B156: 葛城ペパーミント地製織用原糸混紡糸調達契約 | C156: 支出負担行為担当官 加古川刑務所長 浦方 亀世 （兵庫県加古川市加古川町大野1530） | D156: 2024-07-12 | E156: 株式会社ムラカミ 北海道札幌市中央区北13条西17-1-36 | F156: 3430001016775 | G156: 一般競争入札 | H156: 12047755 | I156: 11313500 | J156: =IFERROR(ROUNDDOWN(I156/H156,3),"-") -> 0.939
A157: 154 | B157: 葛城黄緑地製織用原糸混紡糸調達契約 | C157: 支出負担行為担当官 加古川刑務所長 浦方 亀世 （兵庫県加古川市加古川町大野1530） | D157: 2024-07-12 | E157: 株式会社ムラカミ 北海道札幌市中央区北13条西17-1-36 | F157: 3430001016775 | G157: 一般競争入札 | H157: 16158166 | I157: 15173400 | J157: =IFERROR(ROUNDDOWN(I157/H157,3),"-") -> 0.939
A158: 155 | B158: 縞柄布団地製織用原糸混紡糸肉桂色調達契約 | C158: 支出負担行為担当官 加古川刑務所長 浦方 亀世 （兵庫県加古川市加古川町大野1530） | D158: 2024-07-12 | E158: 株式会社ムラカミ 北海道札幌市中央区北13条西17-1-36 | F158: 3430001016775 | G158: 一般競争入札 | H158: 22199245 | I158: 20594200 | J158: =IFERROR(ROUNDDOWN(I158/H158,3),"-") -> 0.927
A159: 156 | B159: 法務局地図作成事業（令和6年度及び令和7年度）一式 | C159: 支出負担行為担当官 高松法務局長 相原 茂 （香川県高松市丸の内1-1） | D159: 2024-07-12 | E159: 公益社団法人香川県公共嘱託登記土地家屋調査士協会 香川県高松市丸の内9-29 | F159: 2470005001226 | G159: 一般競争入札 | H159: 36847477 | I159: 31240000 | J159: =IFERROR(ROUNDDOWN(I159/H159,3),"-") -> 0.847 | K159: 国庫債務負担行為
A160: 157 | B160: 大都市型法務局地図作成事業（令和6年度及び令和7年度）一式 | C160: 支出負担行為担当官 高松法務局長 相原 茂 （香川県高松市丸の内1-1） | D160: 2024-07-12 | E160: 公益社団法人香川県公共嘱託登記土地家屋調査士協会 香川県高松市丸の内9-29 | F160: 2470005001226 | G160: 一般競争入札 | H160: 36692119 | I160: 31240000 | J160: =IFERROR(ROUNDDOWN(I160/H160,3),"-") -> 0.851 | K160: 国庫債務負担行為
A161: 158 | B161: 令和6年度及び同7年度法務局地図作成事業 一式 | C161: 支出負担行為担当官 広島法務局長 篠原 辰夫 （広島県広島市中区上八丁堀6-30） | D161: 2024-07-12 | E161: 公益社団法人広島県公共嘱託登記土地家屋調査士協会 広島県広島市東区二葉の里1-2-44-301 | F161: 6240005000791 | G161: 一般競争入札 | H161: 34596912 | I161: 34540000 | J161: =IFERROR(ROUNDDOWN(I161/H161,3),"-") -> 0.998 | K161: 国庫債務負担行為
A162: 159 | B162: 震災復興型法務局地図作成事業一式（いわき市勿来町窪田御前崎ほか地区） | C162: 支出負担行為担当官 福島地方法務局長 小松 淳也 （福島県福島市霞町1-46） | D162: 2024-07-12 | E162: 公益社団法人福島県公共嘱託登記土地家屋調査士協会 福島県福島市浜田町4-16 | F162: 6380005000076 | G162: 一般競争入札 | H162: 58403864 | I162: 58300000 | J162: =IFERROR(ROUNDDOWN(I162/H162,3),"-") -> 0.998 | K162: 国庫債務負担行為
A163: 160 | B163: 令和6年度及び同7年度大都市型法務局地図作成事業 一式 | C163: 支出負担行為担当官 広島法務局長 篠原 辰夫 （広島県広島市中区上八丁堀6-30） | D163: 2024-07-12 | E163: あおぞら土地家屋調査士法人 広島県広島市中区昭和町9-21 | F163: 2240005002734 | G163: 一般競争入札 | H163: 69248413 | I163: 65890000 | J163: =IFERROR(ROUNDDOWN(I163/H163,3),"-") -> 0.951 | K163: 国庫債務負担行為
A164: 161 | B164: 法務局地図作成事業一式（福島市腰浜町ほか地区） | C164: 支出負担行為担当官 福島地方法務局長 小松 淳也 （福島県福島市霞町1-46） | D164: 2024-07-12 | E164: 公益社団法人福島県公共嘱託登記土地家屋調査士協会 福島県福島市浜田町4-16 | F164: 6380005000076 | G164: 一般競争入札 | H164: 74981308 | I164: 74800000 | J164: =IFERROR(ROUNDDOWN(I164/H164,3),"-") -> 0.997 | K164: 国庫債務負担行為
A165: 162 | B165: 法務局地図作成事業（令和6年度及び令和7年度）請負契約 | C165: 支出負担行為担当官 長崎地方法務局長 中嶋 武彦 （長崎県長崎市万才町8-16） | D165: 2024-07-12 | E165: 公益社団法人長崎県公共嘱託登記土地家屋調査士協会 長崎県長崎市万才町6-34 | F165: 9310005000625 | G165: 一般競争入札 | H165: 115688920 | I165: 114457431 | J165: =IFERROR(ROUNDDOWN(I165/H165,3),"-") -> 0.989 | K165: 国庫債務負担行為
A166: 163 | B166: 徳島刑務所工場併設食堂内電源線等配線整備契約 | C166: 支出負担行為担当官 徳島刑務所長 菊地 康司 （徳島県徳島市入田町大久200-1） | D166: 2024-07-16 | E166: 小松設備株式会社 徳島県徳島市川内町大松230-5 | F166: 3480002008503 | G166: 一般競争入札 | H166: 1195700 | I166: 979000 | J166: =IFERROR(ROUNDDOWN(I166/H166,3),"-") -> 0.818
A167: 164 | B167: 地図情報システムへの入力データ編集作業請負契約 | C167: 支出負担行為担当官 熊本地方法務局長 林 健児 （熊本県熊本市中央区大江3-1-53） | D167: 2024-07-16 | E167: 国土情報開発株式会社 東京都世田谷区池尻2-7-3 | F167: 6010901004126 | G167: 一般競争入札 | H167: 1122029 | I167: 1119842 | J167: =IFERROR(ROUNDDOWN(I167/H167,3),"-") -> 0.998 | K167: 再度公告入札
A168: 165 | B168: 札幌法務局北出張所故障停止中昇降機プログラマブルコントローラー等交換による復旧作業請負契約 | C168: 支出負担行為担当官 札幌法務局長 中村 誠 （北海道札幌市北区北八条西2-1-1） | D168: 2024-07-16 | E168: ジャパンエレベーターサービス北海道株式会社 北海道札幌市豊平区水車町6-3-1 | F168: 6430001068120 | G168: 一般競争入札 | H168: 1957425 | I168: 1816331 | J168: =IFERROR(ROUNDDOWN(I168/H168,3),"-") -> 0.927
A169: 166 | B169: 令和6年度長期相続登記等未了土地解消作業（登記名義人200名分）委託契約 | C169: 支出負担行為担当官 千葉地方法務局長 蔦 啓一郎 （千葉県千葉市中央区中央港1-11-3） | D169: 2024-07-16 | E169: 一般社団法人神奈川県公共嘱託登記司法書士協会 神奈川県横浜市中区吉浜町1 | F169: 5020005002844 | G169: 一般競争入札 | H169: 7226604 | I169: 6555997 | J169: =IFERROR(ROUNDDOWN(I169/H169,3),"-") -> 0.907
A170: 167 | B170: 自動車交換契約（3台） | C170: 支出負担行為担当官 福岡出入国在留管理局長 山﨑 浩一 （福岡県福岡市中央区舞鶴3-5-25） | D170: 2024-07-16 | E170: 株式会社ホンダモビリティ九州 福岡県福岡市中央区赤坂1-13-12 | F170: 2290001016634 | G170: 一般競争入札（総合評価落札方式） | H170: 12435487 | I170: 10375709 | J170: 0.834
A171: 168 | B171: 令和5年度札幌少年鑑別所非常伝鈴設備更新整備 | C171: 支出負担行為担当官代理 札幌少年鑑別所次長 宇田 正志 （北海道札幌市東区東苗穂2条1-1-25） | D171: 2024-07-16 | E171: 三菱電機システムサービス株式会社 北海道札幌市厚別区大谷地東2-1-18 | F171: 1010901011705 | G171: 一般競争入札 | H171: 13805000 | I171: 13090000 | J171: =IFERROR(ROUNDDOWN(I171/H171,3),"-") -> 0.948
A172: 169 | B172: 法務局地図作成事業請負 | C172: 支出負担行為担当官 長野地方法務局長 谷田部 浩 （長野県長野市大字長野旭町1108） | D172: 2024-07-16 | E172: 公益社団法人長野県公共嘱託登記土地家屋調査士協会 長野県長野市大字南長野妻科399-2 | F172: 9100005010868 | G172: 一般競争入札 | H172: 54757213 | I172: 54351000 | J172: =IFERROR(ROUNDDOWN(I172/H172,3),"-") -> 0.992 | K172: 国庫債務負担行為
A173: 170 | B173: 山形地方法務局地図作成事業請負契約 | C173: 支出負担行為担当官 山形地方法務局長 本間 与志雄 （山形県山形市緑町1-5-48） | D173: 2024-07-16 | E173: 公益社団法人山形県公共嘱託登記土地家屋調査士協会 山形県山形市緑町1-4-35 | F173: 7390005000470 | G173: 一般競争入札 | H173: 117061705 | I173: 88000000 | J173: =IFERROR(ROUNDDOWN(I173/H173,3),"-") -> 0.751 | K173: 国庫債務負担行為
A174: 171 | B174: 令和6年度市原刑務所健康診断業務等委託 | C174: 支出負担行為担当官 市原刑務所長 熊谷 成史 （千葉県市原市磯ヶ谷11-1） | D174: 2024-07-17 | E174: 公益財団法人ちば県民保健予防財団 千葉県千葉市美浜区新港32-14 | F174: 3040005016902 | G174: 一般競争入札 | H174: 1182449 | I174: 1131862 | J174: =IFERROR(ROUNDDOWN(I174/H174,3),"-") -> 0.957 | K174: 単価契約
A175: 172 | B175: 令和6年度神戸刑務所自動車工場照明器具一式更新契約 | C175: 支出負担行為担当官 神戸刑務所長 二階堂 亮治 （兵庫県明石市大久保町森田120） | D175: 2024-07-18 | E175: 東通ネットワーク株式会社 東京都中央区築地3-12-5 | F175: 6010001092261 | G175: 一般競争入札 | H175: 1713800 | I175: 770000 | J175: =IFERROR(ROUNDDOWN(I175/H175,3),"-") -> 0.449
A176: 173 | B176: ADR認証業務処理システムの更改に係る設計・開発及び運用保守支援業務 一式 | C176: 支出負担行為担当官 法務省大臣官房会計課長 村松 秀樹 （東京都千代田区霞が関1-1-1） | D176: 2024-07-18 | E176: 株式会社ビッグツリーテクノロジー&コンサルティング 東京都港区三田3-13-16 | F176: 2010001193831 | G176: 一般競争入札 | H176: 39448780 | I176: 30526496 | J176: =IFERROR(ROUNDDOWN(I176/H176,3),"-") -> 0.773 | K176: 国庫債務負担行為
A177: 174 | B177: 事務用消耗品（富士フイルム製LTOデータカートリッジ等）供給契約（4品目352個） | C177: 支出負担行為担当官 神戸地方法務局長 三木 秀樹 （兵庫県神戸市中央区波止場町1-1） | D177: 2024-07-19 | E177: 株式会社インフィニティ 山口県岩国市藤生町3-1-5 | F177: 3250001013460 | G177: 一般競争入札 | H177: 2462240 | I177: 1980000 | J177: =IFERROR(ROUNDDOWN(I177/H177,3),"-") -> 0.804
A178: 175 | B178: 職員健康診断及び特別健康診断検査業務委託契約 | C178: 支出負担行為担当官 喜連川社会復帰促進センター長 小野寺 巧 （栃木県さくら市喜連川5547） | D178: 2024-07-19 | E178: 医療法人社団健暉会清原診療所 栃木県宇都宮市清原工業団地15-1 | F178: 1060005009088 | G178: 一般競争入札 | H178: 2554420 | I178: 2303180 | J178: =IFERROR(ROUNDDOWN(I178/H178,3),"-") -> 0.901 | K178: 単価契約
A179: 176 | B179: 岡山地方検察庁ほか3庁における定期健康診断、ストレスチェック検査業務委託契約 | C179: 支出負担行為担当官 岡山地方検察庁検事正 花﨑 政之 （岡山県岡山市北区南方1-8-1） | D179: 2024-07-19 | E179: 公益財団法人岡山県健康づくり財団 岡山県北区平田408-1 | F179: 6260005000237 | G179: 一般競争入札 | H179: 4207368 | I179: 4207368 | J179: =IFERROR(ROUNDDOWN(I179/H179,3),"-") -> 1 | K179: 単価契約 一括調達（岡山地方法務局、中国地方更生保護委員会、中国公安調査局）
A180: 177 | B180: 令和6年度名古屋拘置所ボイラー等の性能検査に伴う年次点検整備業務 | C180: 支出負担行為担当官 名古屋拘置所長 三角 渉 （愛知県名古屋市東区白壁1-1） | D180: 2024-07-19 | E180: 東邦冷熱工業株式会社 愛知県名古屋市守山区大森5-102 | F180: 6180001079639 | G180: 一般競争入札 | H180: 9728495 | I180: 9130000 | J180: =IFERROR(ROUNDDOWN(I180/H180,3),"-") -> 0.938
A181: 178 | B181: 法務局地図作成事業請負契約（岐阜市金華地区（南部）） | C181: 支出負担行為担当官 岐阜地方法務局長 竹内 秀明 （岐阜県岐阜市金竜町5-13） | D181: 2024-07-19 | E181: 公益社団法人岐阜県公共嘱託登記土地家屋調査士協会 岐阜市田端町1-12 | F181: 3200005000039 | G181: 一般競争入札 | H181: 65779960 | I181: 64900000 | J181: =IFERROR(ROUNDDOWN(I181/H181,3),"-") -> 0.986 | K181: 国庫債務負担行為
A182: 179 | B182: 法務局地図作成事業（令和6年度及び令和7年度）請負契約 | C182: 支出負担行為担当官 山口地方法務局長 中島 仁志 （山口県山口市中河原町6-16） | D182: 2024-07-19 | E182: 公益社団法人山口県公共嘱託登記土地家屋調査士協会 山口県山口市惣太夫町2-2 | F182: 3250005007351 | G182: 一般競争入札 | H182: 138504613 | I182: 137500000 | J182: =IFERROR(ROUNDDOWN(I182/H182,3),"-") -> 0.992 | K182: 国庫債務負担行為
A183: 180 | B183: 令和6年度播磨社会復帰促進センター職員定期健康診断業務委託契約 | C183: 支出負担行為担当官 播磨社会復帰促進センター長 鈴木 一之 （兵庫県加古川市八幡町宗佐544） | D183: 2024-07-22 | E183: 公益財団法人加古川総合保健センター 兵庫県加古川市加古川町篠原町103-3 | F183: 7140005020270 | G183: 一般競争入札 | H183: 1335268 | I183: 1240360 | J183: =IFERROR(ROUNDDOWN(I183/H183,3),"-") -> 0.928
A184: 181 | B184: 令和6年版六法全書等の供給契約（198冊） | C184: 支出負担行為担当官 さいたま地方検察庁検事正 野下 智之 （埼玉県さいたま市浦和区高砂3-16-58） | D184: 2024-07-22 | E184: 株式会社紀伊國屋書店さいたま営業所 埼玉県さいたま市浦和区常盤7-3-16 | F184: 4011101005131 | G184: 一般競争入札 | H184: 1985062 | I184: 1982488 | J184: =IFERROR(ROUNDDOWN(I184/H184,3),"-") -> 0.998
A185: 182 | B185: 金沢法務合同庁舎ほか1か所監視カメラ装置供給及び設置作業等請負 | C185: 支出負担行為担当官 金沢地方検察庁検事正 宮地 裕美 （石川県金沢市大手町6-15） | D185: 2024-07-22 | E185: DXアンテナ株式会社 兵庫県神戸市西区室谷1-2-2 | F185: 5140001019293 | G185: 一般競争入札 | H185: 5136781 | I185: 3839000 | J185: =IFERROR(ROUNDDOWN(I185/H185,3),"-") -> 0.747
A186: 183 | B186: 令和6年度「北朝鮮人権侵害問題啓発週間」の交通広告の請負 一式 | C186: 支出負担行為担当官 法務省大臣官房会計課長 村松 秀樹 （東京都千代田区霞が関1-1-1） | D186: 2024-07-22 | E186: 協立広告株式会社 東京都新宿区荒木町13-8 | F186: 4011101005503 | G186: 一般競争入札 | H186: 10640198 | I186: 10098000 | J186: =IFERROR(ROUNDDOWN(I186/H186,3),"-") -> 0.949
A187: 184 | B187: 令和5年度徳島少年鑑別所少年保安システム等更新整備一式 | C187: 支出負担行為担当官 徳島少年鑑別所長 里見 聡 （徳島県徳島市助任本町5‐40） | D187: 2024-07-22 | E187: 三菱電機システムサービス株式会社四国支店 香川県高松市花園町1-9-38 | F187: 1010901011705 | G187: 一般競争入札 | H187: 24753960 | I187: 15180000 | J187: =IFERROR(ROUNDDOWN(I187/H187,3),"-") -> 0.613
A188: 185 | B188: 産業廃棄物収集・運搬及び処分委託契約 | C188: 支出負担行為担当官 福岡地方検察庁検事正 永幡 無二雄 （福岡県福岡市中央区六本松4-2-3） | D188: 2024-07-23 | E188: 株式会社大島産業 佐賀県神埼郡吉野ヶ里町吉田2133番地口第1 | F188: 2300001006600 | G188: 一般競争入札 | H188: 4224429 | I188: 2269190 | J188: =IFERROR(ROUNDDOWN(I188/H188,3),"-") -> 0.537 | K188: 単価契約 一括調達（福岡高等検察庁）
A189: 186 | B189: 上下肢協調運動装置（2台）及び自転車エルゴメータ運動装置（1台）調達契約 | C189: 支出負担行為担当官 高松刑務所長 中島 孝博 （香川県高松市松福町2-16-63） | D189: 2024-07-23 | E189: 株式会社四国医療器 香川県高松市錦町1-11-11 | F189: 1470001001809 | G189: 一般競争入札 | H189: 2882000 | I189: 2288000 | J189: =IFERROR(ROUNDDOWN(I189/H189,3),"-") -> 0.793
A190: 187 | B190: 大分地方法務局庁用自動車交換契約（1台） | C190: 支出負担行為担当官 大分地方法務局長 中野 隆生 （大分県大分市荷揚町7-5） | D190: 2024-07-23 | E190: 大分トヨタ自動車株式会社 大分県大分市大字宮崎字口ノ坪1427-1 | F190: 9320001000248 | G190: 一般競争入札（総合評価落札方式） | H190: 2625354 | I190: 2325354 | J190: =IFERROR(ROUNDDOWN(I190/H190,3),"-") -> 0.885
A191: 188 | B191: 令和6年度旭川刑務所ほか3庁で実施する健康診断業務委託契約 | C191: 支出負担行為担当官 旭川刑務所長 窪田 哲也 （北海道旭川市東鷹来栖3-20-620） | D191: 2024-07-23 | E191: 一般社団法人旭川市医師会健康管理診療所 北海道旭川市金星町1-1-50 | F191: 5450005000169 | G191: 一般競争入札 | H191: 3253899 | I191: 3196171 | J191: =IFERROR(ROUNDDOWN(I191/H191,3),"-") -> 0.982 | K191: 単価契約 一括調達（旭川地方検察庁、北海道地方更生保護委員会、旭川少年鑑別所）
A192: 189 | B192: A重油（8、9月分）供給契約 | C192: 支出負担行為担当官 福岡刑務所長 竹内 徹 （福岡県糟屋郡宇美町障子岳南6-1-1） | D192: 2024-07-23 | E192: 朝日エナジー有限会社 愛媛県今治市古谷甲548-1 | F192: 7500002020427 | G192: 一般競争入札 | H192: 11211200 | I192: 10070368 | J192: =IFERROR(ROUNDDOWN(I192/H192,3),"-") -> 0.898 | K192: 単価契約
A193: 190 | B193: デジタルカラー複合機（5台）賃貸借・保守及び消耗品供給契約 | C193: 支出負担行為担当官 福岡法務局長 土手 敏行 （福岡県福岡市中央区舞鶴3-5-25） | D193: 2024-07-23 | E193: 株式会社ITクリエーション 福岡県福岡市博多区博多駅南4-17-34 | F193: 2290001007591 | G193: 一般競争入札 | H193: 25089018 | I193: 22372495 | J193: =IFERROR(ROUNDDOWN(I193/H193,3),"-") -> 0.891 | K193: 単価契約 保守料を含む。 本体価格合計 792,000円 保守料 21,580,495円
A194: 191 | B194: 法務局地図作成事業（令和6年度及び令和7年度）請負契約 | C194: 支出負担行為担当官 宮崎地方法務局長 河村 素子 （宮崎県宮崎市別府町1-1） | D194: 2024-07-23 | E194: 公益社団法人宮崎県公共嘱託登記土地家屋調査士協会 宮崎県宮崎市旭2-2-2 | F194: 5350005000063 | G194: 一般競争入札 | H194: 48229920 | I194: 48062977 | J194: =IFERROR(ROUNDDOWN(I194/H194,3),"-") -> 0.996 | K194: 国庫債務負担行為
A195: 192 | B195: 令和6年度播磨社会復帰促進センター医薬品等購入契約（3品目） | C195: 支出負担行為担当官 播磨社会復帰促進センター長 鈴木 一之 （兵庫県加古川市八幡町宗佐544） | D195: 2024-07-24 | E195: 株式会社スズケン 愛知県名古屋市東区東片端町8 | F195: 1180001017009 | G195: 一般競争入札 | H195: 1732940 | I195: 1628690 | J195: =IFERROR(ROUNDDOWN(I195/H195,3),"-") -> 0.939 | K195: 単価契約
A196: 193 | B196: 令和6年度消防設備点検業務委託契約 | C196: 支出負担行為担当官 府中刑務所長 八代 宏幸 （東京都府中市晴見町4-10） | D196: 2024-07-24 | E196: 株式会社千代田防災 東京都東村山市多摩湖町1-24-1 | F196: 8012701001573 | G196: 一般競争入札 | H196: 1662100 | I196: 1650000 | J196: =IFERROR(ROUNDDOWN(I196/H196,3),"-") -> 0.992
A197: 194 | B197: 令和6年度大津地方検察庁監視カメラ更新等業務 | C197: 支出負担行為担当官 大津地方検察庁検事正 川越 弘毅 （滋賀県大津市京町3-1-1） | D197: 2024-07-24 | E197: 東通ネットワーク株式会社 東京都中央区築地3-12-5 | F197: 6010001092261 | G197: 一般競争入札 | H197: 4785050 | I197: 2189000 | J197: =IFERROR(ROUNDDOWN(I197/H197,3),"-") -> 0.457
A198: 195 | B198: 借地借家法の更新拒絶等要件に関する調査研究業務の請負 一式 | C198: 支出負担行為担当官 法務省大臣官房会計課長 村松 秀樹 （東京都千代田区霞が関1-1-1） | D198: 2024-07-24 | E198: 公益社団法人商事法務研究会 東京都中央区日本橋3-6-2 | F198: 5010005018552 | G198: 一般競争入札（総合評価落札方式） | H198: 3532816 | I198: 3520000 | J198: =IFERROR(ROUNDDOWN(I198/H198,3),"-") -> 0.996
A199: 196 | B199: 令和6年度8月期ボイラー用白灯油供給契約（44,000ℓ） | C199: 支出負担行為担当官 府中刑務所長 八代 宏幸 （東京都府中市晴見町4-10） | D199: 2024-07-24 | E199: シナネン株式会社 東京都港区三田3-5-27 | F199: 2220001003309 | G199: 一般競争入札 | H199: 4259200 | I199: 3886520 | J199: =IFERROR(ROUNDDOWN(I199/H199,3),"-") -> 0.912 | K199: 単価契約
A200: 197 | B200: 令和5年度愛知少年院矯正施設警備システム緊急整備（少年保安システム更新等整備） | C200: 支出負担行為担当官 愛知少年院長 福岡 秀一 （愛知県豊田市浄水町原山1） | D200: 2024-07-24 | E200: アプロ通信株式会社 岐阜県岐阜市茜部菱野4-134 | F200: 4200001001378 | G200: 一般競争入札 | H200: 52750003 | I200: 41580000 | J200: =IFERROR(ROUNDDOWN(I200/H200,3),"-") -> 0.788
... 55 more rows
